Publisher Label,Publisher URI,"Supplier","Net Amount £","Organisational Unit","Merchant Category Code","Purpose","Payment Date"
"Wolverhampton City Council","http://opendatacommunities.org/id/metropolitan-district-council/wolverhampton","thetrainline.com",22.13,"Research & Development","4112","Public Transport","31/01/2020"
"Wolverhampton City Council","http://opendatacommunities.org/id/metropolitan-district-council/wolverhampton","WWW.IKEA.COM",38.29,"Phoebe Cummings - ACE NPO WAG","5712","Materials","31/01/2020"
"Wolverhampton City Council","http://opendatacommunities.org/id/metropolitan-district-council/wolverhampton","GEN REGISTER OFFICE",14,"Lac Transitions","9399","Services - Supplies & Services to users","31/01/2020"
"Wolverhampton City Council","http://opendatacommunities.org/id/metropolitan-district-council/wolverhampton","PRESENTATION MEDIA LIM",414.39,"Private Hire Vehicles","5943","Equipment & Purchase","31/01/2020"
"Wolverhampton City Council","http://opendatacommunities.org/id/metropolitan-district-council/wolverhampton","PRESENTATION MEDIA LIM",414.39,"Private Hire Vehicles","5943","Equipment & Purchase","31/01/2020"
"Wolverhampton City Council","http://opendatacommunities.org/id/metropolitan-district-council/wolverhampton","PRESENTATION MEDIA LIM",414.39,"Private Hire Vehicles","5943","Services - Professional Fees","31/01/2020"
"Wolverhampton City Council","http://opendatacommunities.org/id/metropolitan-district-council/wolverhampton","GOOGLE  ADS9680351324",506.81,"Communications & Marketing - General","7372","Marketing/Advertising","31/01/2020"
"Wolverhampton City Council","http://opendatacommunities.org/id/metropolitan-district-council/wolverhampton","POST OFFICE COUNTER",60,"Corporate Parenting","9402","Direct Work With Children","31/01/2020"
"Wolverhampton City Council","http://opendatacommunities.org/id/metropolitan-district-council/wolverhampton","thetrainline.com",53.93,"Research & Development","4112","Public Transport","31/01/2020"
"Wolverhampton City Council","http://opendatacommunities.org/id/metropolitan-district-council/wolverhampton","SAINSBURYS (2340)",48.5,"Key to Inspiration","5411","-","31/01/2020"
"Wolverhampton City Council","http://opendatacommunities.org/id/metropolitan-district-council/wolverhampton","DULUX DECORATOR CENTRE",199.39,"Royal Collection - ACE NPO WAG","5198","Materials","31/01/2020"
"Wolverhampton City Council","http://opendatacommunities.org/id/metropolitan-district-council/wolverhampton","WILKO RETAIL LIMITED",5,"Technician","5399","Materials","31/01/2020"
"Wolverhampton City Council","http://opendatacommunities.org/id/metropolitan-district-council/wolverhampton","NATWEST BANK",200,"NRPF","6011","No Recourse to Public Funds","31/01/2020"
"Wolverhampton City Council","http://opendatacommunities.org/id/metropolitan-district-council/wolverhampton","LIDL GB",2.97,"Discretionary Fund","5411","Materials","31/01/2020"
"Wolverhampton City Council","http://opendatacommunities.org/id/metropolitan-district-council/wolverhampton","OAKLAND",240,"NRPF","7011","Section 17","31/01/2020"
"Wolverhampton City Council","http://opendatacommunities.org/id/metropolitan-district-council/wolverhampton","OAKLAND",40,"NRPF","7011","Section 17","31/01/2020"
"Wolverhampton City Council","http://opendatacommunities.org/id/metropolitan-district-council/wolverhampton","Avanti West Coast",184,"Regional Adoption Agency","4112","Public Transport","31/01/2020"
"Wolverhampton City Council","http://opendatacommunities.org/id/metropolitan-district-council/wolverhampton","AMZNMktplace",79.82,"Regional Adoption Agency","5999","Stationery","31/01/2020"
"Wolverhampton City Council","http://opendatacommunities.org/id/metropolitan-district-council/wolverhampton","AMZNMktplace",58.77,"Bert Williams Leisure Centre","5999","Equipment & Purchase","31/01/2020"
"Wolverhampton City Council","http://opendatacommunities.org/id/metropolitan-district-council/wolverhampton","AMZNMKTPLACE AMAZON.CO",6.24,"Bert Williams Leisure Centre","5999","Services - Professional Fees","31/01/2020"
"Wolverhampton City Council","http://opendatacommunities.org/id/metropolitan-district-council/wolverhampton","BLAYDONCOMM",35.2,"Bert Williams Leisure Centre","5732","Equipment & Purchase","31/01/2020"
"Wolverhampton City Council","http://opendatacommunities.org/id/metropolitan-district-council/wolverhampton","ENVATOMARKET51219291",16.17,"Quality Assurance & Policies","5815","Computing - Purchase of Hardware","31/01/2020"
"Wolverhampton City Council","http://opendatacommunities.org/id/metropolitan-district-council/wolverhampton","Central Taxis Limited",3.6,"Lac Transitions","4121","Public Transport","31/01/2020"
"Wolverhampton City Council","http://opendatacommunities.org/id/metropolitan-district-council/wolverhampton","Central Taxis Limited",4.6,"Lac Transitions","4121","Public Transport","31/01/2020"
"Wolverhampton City Council","http://opendatacommunities.org/id/metropolitan-district-council/wolverhampton","Central Taxis Limited",20.1,"Lac Transitions","4121","Public Transport","31/01/2020"
"Wolverhampton City Council","http://opendatacommunities.org/id/metropolitan-district-council/wolverhampton","Central Taxis Limited",19.3,"Lac Transitions","4121","Public Transport","31/01/2020"
"Wolverhampton City Council","http://opendatacommunities.org/id/metropolitan-district-council/wolverhampton","WP-CENTRAL TAXIS L",381,"LAC Team","4121","Client Transport","31/01/2020"
"Wolverhampton City Council","http://opendatacommunities.org/id/metropolitan-district-council/wolverhampton","IZ  D & K TRADING (MID",8,"Shopmobility","5999","Equipment & Purchase","31/01/2020"
"Wolverhampton City Council","http://opendatacommunities.org/id/metropolitan-district-council/wolverhampton","YOUNG'S SHOE REPAIRS L",79.4,"Bilston Market & Licensed Operations","7251","Equipment & Purchase","31/01/2020"
"Wolverhampton City Council","http://opendatacommunities.org/id/metropolitan-district-council/wolverhampton","VERIFONE TAXI/PRIVATE",6.5,"Independant Living Services","4121","Public Transport","31/01/2020"
"Wolverhampton City Council","http://opendatacommunities.org/id/metropolitan-district-council/wolverhampton","WWW.CORAM.ORG.UK",150.62,"Panel Expenses Fostering & Adoption","8398","Publications","31/01/2020"
"Wolverhampton City Council","http://opendatacommunities.org/id/metropolitan-district-council/wolverhampton","TIPPERS WOLVERHAMPTON",8.09,"Cleaning of Buildings - General","5072","Materials","31/01/2020"
"Wolverhampton City Council","http://opendatacommunities.org/id/metropolitan-district-council/wolverhampton","W HAMPTON1109",96.08,"Condition Surveys","5211","Services - Professional Fees","31/01/2020"
"Wolverhampton City Council","http://opendatacommunities.org/id/metropolitan-district-council/wolverhampton","MARS DRINKS UK",-39.16,"Community Enablement","5441","NC Supplies to service users","31/01/2020"
"Wolverhampton City Council","http://opendatacommunities.org/id/metropolitan-district-council/wolverhampton","123 REG LTD",9.99,"Technical Support","5968","Subscriptions","31/01/2020"
"Wolverhampton City Council","http://opendatacommunities.org/id/metropolitan-district-council/wolverhampton","B & Q 1243",15.67,"Ernest Bold Court","5200","Equipment - R & M","31/01/2020"
"Wolverhampton City Council","http://opendatacommunities.org/id/metropolitan-district-council/wolverhampton","Trainline",46.77,"Inclusion Support","4112","Public Transport","31/01/2020"
"Wolverhampton City Council","http://opendatacommunities.org/id/metropolitan-district-council/wolverhampton","AMZNMktplace",13.48,"Environmental Crime and Consumer Protect","5999","Equipment & Purchase","31/01/2020"
"Wolverhampton City Council","http://opendatacommunities.org/id/metropolitan-district-council/wolverhampton","MARKS&SPENCER PLC SACA",4.25,"Libraries","5411","Marketing \ Non-staff advertising","31/01/2020"
"Wolverhampton City Council","http://opendatacommunities.org/id/metropolitan-district-council/wolverhampton","ROYAL CARPETS",144.83,"LAC Transitions Team","5713","Client Allowances","31/01/2020"
"Wolverhampton City Council","http://opendatacommunities.org/id/metropolitan-district-council/wolverhampton","EB  LGIU WORKSHOP EFFE",249.95,"Member Training","7399","Training Expenses","31/01/2020"
"Wolverhampton City Council","http://opendatacommunities.org/id/metropolitan-district-council/wolverhampton","PAYPAL  EDGETRAININ",150,"Workforce Development","8999","Training Expenses","31/01/2020"
"Wolverhampton City Council","http://opendatacommunities.org/id/metropolitan-district-council/wolverhampton","AMZNMktplace",89.99,"Parks/Open Spaces - R & M","5999","Equipment & Purchase","31/01/2020"
"Wolverhampton City Council","http://opendatacommunities.org/id/metropolitan-district-council/wolverhampton","AMZNMktplace",28.22,"Parks/Open Spaces - R & M","5999","Equipment & Purchase","31/01/2020"
"Wolverhampton City Council","http://opendatacommunities.org/id/metropolitan-district-council/wolverhampton","AMZNMktplace",7.82,"Members Expenses","5999","Services - Professional Fees","31/01/2020"
"Wolverhampton City Council","http://opendatacommunities.org/id/metropolitan-district-council/wolverhampton","AMZNMktplace",41.23,"Northicote Farm","5999","Equipment & Purchase","31/01/2020"
"Wolverhampton City Council","http://opendatacommunities.org/id/metropolitan-district-council/wolverhampton","EB  AMHP-RESEARCH INFO",18,"Mental Health Assessment & Care Mgmt","7399","Conference Expenses","30/01/2020"
"Wolverhampton City Council","http://opendatacommunities.org/id/metropolitan-district-council/wolverhampton","GEN REGISTER OFFICE",14,"Lac Transitions","9399","Services - Supplies & Services to users","30/01/2020"
"Wolverhampton City Council","http://opendatacommunities.org/id/metropolitan-district-council/wolverhampton","SPORTSDIRECT 383",5.99,"Key to Inspiration","5941","-","30/01/2020"
"Wolverhampton City Council","http://opendatacommunities.org/id/metropolitan-district-council/wolverhampton","J D SPORTS PLC",30.05,"Key to Inspiration","5941","-","30/01/2020"
"Wolverhampton City Council","http://opendatacommunities.org/id/metropolitan-district-council/wolverhampton","FOOTASYLUM",44.98,"Key to Inspiration","5941","-","30/01/2020"
"Wolverhampton City Council","http://opendatacommunities.org/id/metropolitan-district-council/wolverhampton","ARGOS WOLVERHAMPTO",10,"Key to Inspiration","5310","-","30/01/2020"
"Wolverhampton City Council","http://opendatacommunities.org/id/metropolitan-district-council/wolverhampton","ICELAND",21.1,"Key to Inspiration","5411","-","30/01/2020"
"Wolverhampton City Council","http://opendatacommunities.org/id/metropolitan-district-council/wolverhampton","ASDA SUPERSTORE",18.85,"Key to Inspiration","5411","-","30/01/2020"
"Wolverhampton City Council","http://opendatacommunities.org/id/metropolitan-district-council/wolverhampton","HOME BARGAINS WOLVERHA",5.37,"Key to Inspiration","5251","-","30/01/2020"
"Wolverhampton City Council","http://opendatacommunities.org/id/metropolitan-district-council/wolverhampton","SHOE ZONE LTD 1165",14.03,"Key to Inspiration","5661","-","30/01/2020"
"Wolverhampton City Council","http://opendatacommunities.org/id/metropolitan-district-council/wolverhampton","SAINSBURYS (2340)",14.2,"Key to Inspiration","5411","-","30/01/2020"
"Wolverhampton City Council","http://opendatacommunities.org/id/metropolitan-district-council/wolverhampton","WILKO RETAIL LIMITED",11.1,"Key to Inspiration","5399","-","30/01/2020"
"Wolverhampton City Council","http://opendatacommunities.org/id/metropolitan-district-council/wolverhampton","ASDA GROCERIES ONLINE",104.11,"Bradley Resource Centre","5411","Provisions (Not for resale)","30/01/2020"
"Wolverhampton City Council","http://opendatacommunities.org/id/metropolitan-district-council/wolverhampton","SP   SUBLI BLANKS LIMI",59.5,"Document Centre - General","5399","Materials","30/01/2020"
"Wolverhampton City Council","http://opendatacommunities.org/id/metropolitan-district-council/wolverhampton","DULUX DECORATOR CENTRE",27.36,"Royal Collection - ACE NPO WAG","5198","Materials","30/01/2020"
"Wolverhampton City Council","http://opendatacommunities.org/id/metropolitan-district-council/wolverhampton","WWW.BRISTOWSUTOR.C",0,"Parking Enforcement","9399","VAT","30/01/2020"
"Wolverhampton City Council","http://opendatacommunities.org/id/metropolitan-district-council/wolverhampton","WWW.BRISTOWSUTOR.C",0,"Revenues","9399","VAT","30/01/2020"
"Wolverhampton City Council","http://opendatacommunities.org/id/metropolitan-district-council/wolverhampton","WEST MIDLANDS TRAV",59,"SEN Special Education Admin","4131","Public Transportation","30/01/2020"
"Wolverhampton City Council","http://opendatacommunities.org/id/metropolitan-district-council/wolverhampton","WWW.WMCA.CO.UK",88,"Court Team","9399","Section 17","30/01/2020"
"Wolverhampton City Council","http://opendatacommunities.org/id/metropolitan-district-council/wolverhampton","Avanti West Coast",184,"Regional Adoption Agency","4112","Public Transport","30/01/2020"
"Wolverhampton City Council","http://opendatacommunities.org/id/metropolitan-district-council/wolverhampton","Avanti West Coast",184,"Regional Adoption Agency","4112","Public Transport","30/01/2020"
"Wolverhampton City Council","http://opendatacommunities.org/id/metropolitan-district-council/wolverhampton","AMZNMktplace",3.32,"Regional Adoption Agency","5999","Fixtures and Fittings - Purchases","30/01/2020"
"Wolverhampton City Council","http://opendatacommunities.org/id/metropolitan-district-council/wolverhampton","POST OFFICE COUNTER",380,"Regional Adoption Agency","9402","Comms - Postage","30/01/2020"
"Wolverhampton City Council","http://opendatacommunities.org/id/metropolitan-district-council/wolverhampton","AMZNMktplace",33.3,"Regional Adoption Agency","5999","Stationery","30/01/2020"
"Wolverhampton City Council","http://opendatacommunities.org/id/metropolitan-district-council/wolverhampton","AMZNMKTPLACE AMAZON.CO",46.18,"Aldersley Leisure Village","5999","Equipment & Purchase","30/01/2020"
"Wolverhampton City Council","http://opendatacommunities.org/id/metropolitan-district-council/wolverhampton","SAINSBURYS (2340)",45.95,"Mayoral Expenses","5411","Hospitality","30/01/2020"
"Wolverhampton City Council","http://opendatacommunities.org/id/metropolitan-district-council/wolverhampton","Central Taxis Limited",20.3,"Lac Transitions","4121","Public Transport","30/01/2020"
"Wolverhampton City Council","http://opendatacommunities.org/id/metropolitan-district-council/wolverhampton","Central Taxis Limited",20.1,"Lac Transitions","4121","Public Transport","30/01/2020"
"Wolverhampton City Council","http://opendatacommunities.org/id/metropolitan-district-council/wolverhampton","Trainline",98.09,"Lac Transitions","4112","Public Transport","30/01/2020"
"Wolverhampton City Council","http://opendatacommunities.org/id/metropolitan-district-council/wolverhampton","AMZNMktplace",50.46,"Healthy Life Expectancy","5999","Equipment - R & M","30/01/2020"
"Wolverhampton City Council","http://opendatacommunities.org/id/metropolitan-district-council/wolverhampton","AMZNMktplace",30.77,"Healthy Life Expectancy","5999","Equipment - R & M","30/01/2020"
"Wolverhampton City Council","http://opendatacommunities.org/id/metropolitan-district-council/wolverhampton","AMZNMktplace",224.48,"Upper Pendeford Farm Childrens Home","5999","Equipment & Purchase","30/01/2020"
"Wolverhampton City Council","http://opendatacommunities.org/id/metropolitan-district-council/wolverhampton","ASDA GROCERIES ONLINE",182.34,"Upper Pendeford Farm Childrens Home","5411","Provisions (Not for resale)","30/01/2020"
"Wolverhampton City Council","http://opendatacommunities.org/id/metropolitan-district-council/wolverhampton","AMZNMKTPLACE AMAZON.CO",38.47,"SEN Special Education Admin","5999","Equipment & Purchase","30/01/2020"
"Wolverhampton City Council","http://opendatacommunities.org/id/metropolitan-district-council/wolverhampton","Twinkl Limited",84.9,"SEN Sensory Inclusion","8299","Equipment & Purchase","30/01/2020"
"Wolverhampton City Council","http://opendatacommunities.org/id/metropolitan-district-council/wolverhampton","Cross Country Trains",8.2,"Head of Strategic Commissioning � People","4112","Public Transport","30/01/2020"
"Wolverhampton City Council","http://opendatacommunities.org/id/metropolitan-district-council/wolverhampton","SAINSBURYS SACAT (2340",5.75,"Civic Centre Catering","5411","Comms - Postage","30/01/2020"
"Wolverhampton City Council","http://opendatacommunities.org/id/metropolitan-district-council/wolverhampton","ASDA GROCERIES ONLINE",195.37,"Duke Street Bungalows","5411","Provisions (Not for resale)","30/01/2020"
"Wolverhampton City Council","http://opendatacommunities.org/id/metropolitan-district-council/wolverhampton","THE QUEEN VICTORIA HOT",135,"CIN/CP Social Work Unit - Area 3","7011","Accommodation Costs","30/01/2020"
"Wolverhampton City Council","http://opendatacommunities.org/id/metropolitan-district-council/wolverhampton","WWW.OUTDOORGB.COM",-66.17,"Northicote Farm","5999","Clothing / Uniforms","30/01/2020"
"Wolverhampton City Council","http://opendatacommunities.org/id/metropolitan-district-council/wolverhampton","APPLE.COM/UK",1211.68,"Strategic ICTS (ICT Serv Budget)","5732","Computing - Purchase of Hardware","29/01/2020"
"Wolverhampton City Council","http://opendatacommunities.org/id/metropolitan-district-council/wolverhampton","WWW.BRISTOWSUTOR.C",0,"Parking Enforcement","9399","VAT","29/01/2020"
"Wolverhampton City Council","http://opendatacommunities.org/id/metropolitan-district-council/wolverhampton","BAKER ROSS",53.99,"Education And Access","5970","Materials","29/01/2020"
"Wolverhampton City Council","http://opendatacommunities.org/id/metropolitan-district-council/wolverhampton","CITY OF WOLVERHAMPTON",27,"Lac Transitions","9399","Services - Supplies & Services to users","29/01/2020"
"Wolverhampton City Council","http://opendatacommunities.org/id/metropolitan-district-council/wolverhampton","WAITROSE 696",1.85,"Discretionary Fund","5411","Materials","29/01/2020"
"Wolverhampton City Council","http://opendatacommunities.org/id/metropolitan-district-council/wolverhampton","WM MORRISON FOOD.COM",77.5,"Discretionary Fund","5411","Materials","29/01/2020"
"Wolverhampton City Council","http://opendatacommunities.org/id/metropolitan-district-council/wolverhampton","SAINSBURYS (2340)",2.9,"Discretionary Fund","5411","Materials","29/01/2020"
"Wolverhampton City Council","http://opendatacommunities.org/id/metropolitan-district-council/wolverhampton","SEVERN TRENT WATER",52.39,"LAC Transitions Team","4900","Water Charges","29/01/2020"
"Wolverhampton City Council","http://opendatacommunities.org/id/metropolitan-district-council/wolverhampton","OAKLAND",40,"NRPF","7011","No Recourse to Public Funds","29/01/2020"
"Wolverhampton City Council","http://opendatacommunities.org/id/metropolitan-district-council/wolverhampton","WHITEMORE REANS LTD",17.92,"Aldersley Leisure Village","5251","Equipment & Purchase","29/01/2020"
"Wolverhampton City Council","http://opendatacommunities.org/id/metropolitan-district-council/wolverhampton","thetrainline.com",115.28,"Work Box","4112","Public Transport","29/01/2020"
"Wolverhampton City Council","http://opendatacommunities.org/id/metropolitan-district-council/wolverhampton","Central Taxis Limited",7,"Corporate Parenting","4121","Public Transport","29/01/2020"
"Wolverhampton City Council","http://opendatacommunities.org/id/metropolitan-district-council/wolverhampton","Central Taxis Limited",6.7,"Pupil Premium","4121","Public Transport","29/01/2020"
"Wolverhampton City Council","http://opendatacommunities.org/id/metropolitan-district-council/wolverhampton","WEST MID TRAVEL",236.35,"Youth Offending Team","4131","Public Transport","29/01/2020"
"Wolverhampton City Council","http://opendatacommunities.org/id/metropolitan-district-council/wolverhampton","thetrainline.com",44.26,"Starting and Developing Well(0-24 group)","4112","Public Transport","29/01/2020"
"Wolverhampton City Council","http://opendatacommunities.org/id/metropolitan-district-council/wolverhampton","WOLVERHAMPTON RACECOUR",93.12,"Regional Adoption Agency","7011","Accommodation Costs","29/01/2020"
"Wolverhampton City Council","http://opendatacommunities.org/id/metropolitan-district-council/wolverhampton","Trainline",9.11,"Service Director Adults","4112","Public Transport","29/01/2020"
"Wolverhampton City Council","http://opendatacommunities.org/id/metropolitan-district-council/wolverhampton","AMZNMktplace",10.13,"Business Support Services","5999","Equipment & Purchase","29/01/2020"
"Wolverhampton City Council","http://opendatacommunities.org/id/metropolitan-district-council/wolverhampton","AMZNMktplace",14.99,"Business Support Services","5999","Equipment & Purchase","29/01/2020"
"Wolverhampton City Council","http://opendatacommunities.org/id/metropolitan-district-council/wolverhampton","AMZNMktplace",24.99,"MASH","5999","Equipment - Health and Safety","29/01/2020"
"Wolverhampton City Council","http://opendatacommunities.org/id/metropolitan-district-council/wolverhampton","DUDLEY MBC  INTERN",16.5,"CIN/CP Social Work Unit - Area 7","8999","Section 17","29/01/2020"
"Wolverhampton City Council","http://opendatacommunities.org/id/metropolitan-district-council/wolverhampton","W HAMPTON1797",20.82,"Cleaning of Buildings - General","5211","Materials","29/01/2020"
"Wolverhampton City Council","http://opendatacommunities.org/id/metropolitan-district-council/wolverhampton","AMZNMKTPLACE AMAZON.CO",22.32,"Condition Surveys","5999","Services - Professional Fees","29/01/2020"
"Wolverhampton City Council","http://opendatacommunities.org/id/metropolitan-district-council/wolverhampton","CUMMINGS BROTHERS LOCK",3,"Inclusion Support","7399","Equipment & Purchase","29/01/2020"
"Wolverhampton City Council","http://opendatacommunities.org/id/metropolitan-district-council/wolverhampton","ALDI 94 772",5.56,"Libraries","5411","Marketing \ Non-staff advertising","29/01/2020"
"Wolverhampton City Council","http://opendatacommunities.org/id/metropolitan-district-council/wolverhampton","ALDI STORES LTD",6.95,"Libraries","5411","Marketing \ Non-staff advertising","29/01/2020"
"Wolverhampton City Council","http://opendatacommunities.org/id/metropolitan-district-council/wolverhampton","QUEENSWAY INTERIOR",283.33,"LAC Transitions Team","5712","Client Allowances","29/01/2020"
"Wolverhampton City Council","http://opendatacommunities.org/id/metropolitan-district-council/wolverhampton","CARD FACTORY",22.44,"Road Safety","5947","Equipment & Purchase","29/01/2020"
"Wolverhampton City Council","http://opendatacommunities.org/id/metropolitan-district-council/wolverhampton","POST OFFICE COUNTER",210,"Inclusion Support","9402","Comms - Postage","29/01/2020"
"Wolverhampton City Council","http://opendatacommunities.org/id/metropolitan-district-council/wolverhampton","POST OFFICE COUNTER",140,"Inclusion Support","9402","Comms - Postage","29/01/2020"
"Wolverhampton City Council","http://opendatacommunities.org/id/metropolitan-district-council/wolverhampton","NATWEST BANK",100,"NRPF","6011","No Recourse to Public Funds","29/01/2020"
"Wolverhampton City Council","http://opendatacommunities.org/id/metropolitan-district-council/wolverhampton","NATWEST BANK",200,"NRPF","6011","No Recourse to Public Funds","29/01/2020"
"Wolverhampton City Council","http://opendatacommunities.org/id/metropolitan-district-council/wolverhampton","WWW.ALDI.CO.UK",10.75,"Music Support Team","5411","Equipment & Purchase","29/01/2020"
"Wolverhampton City Council","http://opendatacommunities.org/id/metropolitan-district-council/wolverhampton","WWW.OUTDOORGB.COM",118.28,"Northicote Farm","5999","Clothing / Uniforms","29/01/2020"
"Wolverhampton City Council","http://opendatacommunities.org/id/metropolitan-district-council/wolverhampton","ROYAL MAIL GROUP",285,"Communications & Marketing - General","9402","Marketing/Advertising","28/01/2020"
"Wolverhampton City Council","http://opendatacommunities.org/id/metropolitan-district-council/wolverhampton","AMZNMktplace",35.61,"Archives","5999","Computing - Purchase of Hardware","28/01/2020"
"Wolverhampton City Council","http://opendatacommunities.org/id/metropolitan-district-council/wolverhampton","WAITROSE 696",5.27,"Corporate Parenting","5411","Direct Work With Children","28/01/2020"
"Wolverhampton City Council","http://opendatacommunities.org/id/metropolitan-district-council/wolverhampton","WP-CENTRAL TAXIS L",6.3,"Corporate Parenting","4121","Direct Work With Children","28/01/2020"
"Wolverhampton City Council","http://opendatacommunities.org/id/metropolitan-district-council/wolverhampton","WP-CENTRAL TAXIS L",18,"Corporate Parenting","4121","Direct Work With Children","28/01/2020"
"Wolverhampton City Council","http://opendatacommunities.org/id/metropolitan-district-council/wolverhampton","FACEBK  MT29XQ6DW2",25,"The Little Civic","7311","Marketing \ Non-staff advertising","28/01/2020"
"Wolverhampton City Council","http://opendatacommunities.org/id/metropolitan-district-council/wolverhampton","ASDA GROCERIES ONLINE",-0.6,"Bradley Resource Centre","5411","Provisions (Not for resale)","28/01/2020"
"Wolverhampton City Council","http://opendatacommunities.org/id/metropolitan-district-council/wolverhampton","ASDA GROCERIES ONLINE",141.95,"Bradley Resource Centre","5411","Provisions (Not for resale)","28/01/2020"
"Wolverhampton City Council","http://opendatacommunities.org/id/metropolitan-district-council/wolverhampton","ASHGROVE TRADING",225,"Document Centre - General","5943","Materials","28/01/2020"
"Wolverhampton City Council","http://opendatacommunities.org/id/metropolitan-district-council/wolverhampton","WOLVERHAMPTON T/O",27.4,"IMPACT","4112","Public Transportation","28/01/2020"
"Wolverhampton City Council","http://opendatacommunities.org/id/metropolitan-district-council/wolverhampton","PO WILLENHALL RD 5497",60,"CIN/CP Social Work Unit - Area 1","6011","Grant Payments","28/01/2020"
"Wolverhampton City Council","http://opendatacommunities.org/id/metropolitan-district-council/wolverhampton","TESCO STORES 5397",20,"CIN/CP Social Work Unit - Area 1","5411","Section 17","28/01/2020"
"Wolverhampton City Council","http://opendatacommunities.org/id/metropolitan-district-council/wolverhampton","OAKLAND",80,"NRPF","7011","No Recourse to Public Funds","28/01/2020"
"Wolverhampton City Council","http://opendatacommunities.org/id/metropolitan-district-council/wolverhampton","Amazon.co.uk Z393844W5",24.5,"Aldersley Leisure Village","5969","Equipment - Health and Safety","28/01/2020"
"Wolverhampton City Council","http://opendatacommunities.org/id/metropolitan-district-council/wolverhampton","LIDL GB",7.37,"Youth Offending Team","5411","Hospitality","28/01/2020"
"Wolverhampton City Council","http://opendatacommunities.org/id/metropolitan-district-council/wolverhampton","JOHNSONS",11,"Cemeteries","7210","-","28/01/2020"
"Wolverhampton City Council","http://opendatacommunities.org/id/metropolitan-district-council/wolverhampton","Amazon.co.uk Z06RO2Z75",30.85,"LAC Transitions Team","5969","Furniture","28/01/2020"
"Wolverhampton City Council","http://opendatacommunities.org/id/metropolitan-district-council/wolverhampton","AMZNMktplace",36.67,"Upper Pendeford Farm Childrens Home","5999","Fixtures and Fittings - Purchases","28/01/2020"
"Wolverhampton City Council","http://opendatacommunities.org/id/metropolitan-district-council/wolverhampton","WP-CENTRAL TAXIS L",330,"Looked After Team 2","4121","Financial Assistance In Exceptional Circ","28/01/2020"
"Wolverhampton City Council","http://opendatacommunities.org/id/metropolitan-district-council/wolverhampton","AMZNMktplace",19.98,"Work Related Studies","5999","Equipment & Purchase","28/01/2020"
"Wolverhampton City Council","http://opendatacommunities.org/id/metropolitan-district-council/wolverhampton","www.csstorage.co.uk",234.84,"The Maltings","5046","Furniture","28/01/2020"
"Wolverhampton City Council","http://opendatacommunities.org/id/metropolitan-district-council/wolverhampton","SAINSBURYS (2340)",40.61,"Creative Studies Delivery Area","5411","Provisions (Not for resale)","28/01/2020"
"Wolverhampton City Council","http://opendatacommunities.org/id/metropolitan-district-council/wolverhampton","AMZNMktplace",8.63,"Business Support Services","5999","Equipment & Purchase","28/01/2020"
"Wolverhampton City Council","http://opendatacommunities.org/id/metropolitan-district-council/wolverhampton","AMZNMKTPLACE AMAZON.CO",26.27,"LAC Transitions Accommodation","5999","Client Allowances","28/01/2020"
"Wolverhampton City Council","http://opendatacommunities.org/id/metropolitan-district-council/wolverhampton","W HAMPTON1797",19.98,"Cleaning of Buildings - General","5211","Materials","28/01/2020"
"Wolverhampton City Council","http://opendatacommunities.org/id/metropolitan-district-council/wolverhampton","CUMMINGS BROTHERS LOCK",13.33,"Cleaning of Buildings - General","7399","Materials","28/01/2020"
"Wolverhampton City Council","http://opendatacommunities.org/id/metropolitan-district-council/wolverhampton","CUMMINGS BROTHERS LOCK",10,"Cleaning of Buildings - General","7399","Materials","28/01/2020"
"Wolverhampton City Council","http://opendatacommunities.org/id/metropolitan-district-council/wolverhampton","AMZNMktplace",111.37,"Blakenhall Resource Centre","5999","Equipment & Purchase","28/01/2020"
"Wolverhampton City Council","http://opendatacommunities.org/id/metropolitan-district-council/wolverhampton","AMZNMktplace",13.48,"SEN Special Education Admin","5999","Equipment & Purchase","28/01/2020"
"Wolverhampton City Council","http://opendatacommunities.org/id/metropolitan-district-council/wolverhampton","Amazon.co.uk 5I5UK2TZ5",18.6,"Technical Support","5969","Computing - Purchase of Hardware","28/01/2020"
"Wolverhampton City Council","http://opendatacommunities.org/id/metropolitan-district-council/wolverhampton","UTILITA ENERGY LIMITED",148.1,"LAC Team","4900","Financial Assistance In Exceptional Circ","28/01/2020"
"Wolverhampton City Council","http://opendatacommunities.org/id/metropolitan-district-council/wolverhampton","WP-CENTRAL TAXIS L",90,"Looked After Team 2","4121","Client Transport","28/01/2020"
"Wolverhampton City Council","http://opendatacommunities.org/id/metropolitan-district-council/wolverhampton","ASDA GROCERIES ONLINE",47.02,"Ernest Bold Court","5411","Provisions (Not for resale)","28/01/2020"
"Wolverhampton City Council","http://opendatacommunities.org/id/metropolitan-district-council/wolverhampton","Trainline",167.47,"Head of Service - LAC","4112","Public Transport","28/01/2020"
"Wolverhampton City Council","http://opendatacommunities.org/id/metropolitan-district-council/wolverhampton","NEXT RETAIL LTD",43.33,"Mayoral Expenses","5651","Clothing / Uniforms","28/01/2020"
"Wolverhampton City Council","http://opendatacommunities.org/id/metropolitan-district-council/wolverhampton","MARKS&SPENCER PLC SACA",49.25,"Mayoral Expenses","5411","Clothing / Uniforms","28/01/2020"
"Wolverhampton City Council","http://opendatacommunities.org/id/metropolitan-district-council/wolverhampton","NCS VUE WAMITAB TEST",143,"Workforce Development","8299","Training Expenses","28/01/2020"
"Wolverhampton City Council","http://opendatacommunities.org/id/metropolitan-district-council/wolverhampton","NATWEST BANK",200,"NRPF","6011","No Recourse to Public Funds","28/01/2020"
"Wolverhampton City Council","http://opendatacommunities.org/id/metropolitan-district-council/wolverhampton","NATWEST BANK",200,"NRPF","6011","No Recourse to Public Funds","28/01/2020"
"Wolverhampton City Council","http://opendatacommunities.org/id/metropolitan-district-council/wolverhampton","CS-CATERING-EQ",118,"Hickman Avenue Depot","5085","R&M - Departmental planned (external)","28/01/2020"
"Wolverhampton City Council","http://opendatacommunities.org/id/metropolitan-district-council/wolverhampton","NEXT RETAIL LTD",43.33,"Mayoral Expenses","5651","Clothing / Uniforms","28/01/2020"
"Wolverhampton City Council","http://opendatacommunities.org/id/metropolitan-district-council/wolverhampton","AMZNMktplace",49.24,"Northicote Farm","5999","Clothing / Uniforms","28/01/2020"
"Wolverhampton City Council","http://opendatacommunities.org/id/metropolitan-district-council/wolverhampton","AMZNMKTPLACE AMAZON.CO",48.78,"Northicote Farm","5999","Clothing / Uniforms","28/01/2020"
"Wolverhampton City Council","http://opendatacommunities.org/id/metropolitan-district-council/wolverhampton","AMZNMKTPLACE AMAZON.CO",34.57,"Northicote Farm","5999","Equipment & Purchase","28/01/2020"
"Wolverhampton City Council","http://opendatacommunities.org/id/metropolitan-district-council/wolverhampton","AMZNMKTPLACE AMAZON.CO",10.82,"Northicote Farm","5999","Clothing / Uniforms","28/01/2020"
"Wolverhampton City Council","http://opendatacommunities.org/id/metropolitan-district-council/wolverhampton","Trainline",194.85,"Service Director City Environment","4112","Public Transport","27/01/2020"
"Wolverhampton City Council","http://opendatacommunities.org/id/metropolitan-district-council/wolverhampton","GEN REGISTER OFFICE",14,"Lac Transitions","9399","Services - Supplies & Services to users","27/01/2020"
"Wolverhampton City Council","http://opendatacommunities.org/id/metropolitan-district-council/wolverhampton","AMZNMktplace",31.58,"Communications & Marketing - General","5999","Marketing/Advertising","27/01/2020"
"Wolverhampton City Council","http://opendatacommunities.org/id/metropolitan-district-council/wolverhampton","ADOBE STOCK",19.99,"Communications & Marketing - General","5734","Marketing/Advertising","27/01/2020"
"Wolverhampton City Council","http://opendatacommunities.org/id/metropolitan-district-council/wolverhampton","ASDA GROCERIES ONLINE",-7.28,"Key to Inspiration","5411","-","27/01/2020"
"Wolverhampton City Council","http://opendatacommunities.org/id/metropolitan-district-council/wolverhampton","ASDA GROCERIES ONLINE",212.27,"Key to Inspiration","5411","-","27/01/2020"
"Wolverhampton City Council","http://opendatacommunities.org/id/metropolitan-district-council/wolverhampton","SAINSBURYS SACAT (2340",5.25,"Key to Inspiration","5411","Subsistence","27/01/2020"
"Wolverhampton City Council","http://opendatacommunities.org/id/metropolitan-district-council/wolverhampton","WATERSTONES",6.59,"Key to Inspiration","5942","Educ Trips, Holidays, Outings, Activity","27/01/2020"
"Wolverhampton City Council","http://opendatacommunities.org/id/metropolitan-district-council/wolverhampton","ICELAND",30.3,"Key to Inspiration","5411","Educ Trips, Holidays, Outings, Activity","27/01/2020"
"Wolverhampton City Council","http://opendatacommunities.org/id/metropolitan-district-council/wolverhampton","ASDA SUPERSTORE",32.74,"Key to Inspiration","5411","Subsistence","27/01/2020"
"Wolverhampton City Council","http://opendatacommunities.org/id/metropolitan-district-council/wolverhampton","ARGOS WOLVERHAMPTO",99.99,"Key to Inspiration","5310","Educ Trips, Holidays, Outings, Activity","27/01/2020"
"Wolverhampton City Council","http://opendatacommunities.org/id/metropolitan-district-council/wolverhampton","SAINSBURYS SACAT (2340",3,"Key to Inspiration","5411","Direct Work With Children","27/01/2020"
"Wolverhampton City Council","http://opendatacommunities.org/id/metropolitan-district-council/wolverhampton","SAINSBURYS SACAT (2340",21.1,"Key to Inspiration","5411","Subsistence","27/01/2020"
"Wolverhampton City Council","http://opendatacommunities.org/id/metropolitan-district-council/wolverhampton","FACEBK  PVFZMQADW2",17,"The Little Civic","7311","Marketing \ Non-staff advertising","27/01/2020"
"Wolverhampton City Council","http://opendatacommunities.org/id/metropolitan-district-council/wolverhampton","FACEBK  WJE4YQJDW2",12,"The Little Civic","7311","Marketing \ Non-staff advertising","27/01/2020"
"Wolverhampton City Council","http://opendatacommunities.org/id/metropolitan-district-council/wolverhampton","ASDA GROCERIES ONLINE",-1.21,"Bradley Resource Centre","5411","Provisions (Not for resale)","27/01/2020"
"Wolverhampton City Council","http://opendatacommunities.org/id/metropolitan-district-council/wolverhampton","ASDA GROCERIES ONLINE",209.55,"Bradley Resource Centre","5411","Provisions (Not for resale)","27/01/2020"
"Wolverhampton City Council","http://opendatacommunities.org/id/metropolitan-district-council/wolverhampton","AMZNMKTPLACE AMAZON.CO",298.32,"Strategic ICTS (ICT Serv Budget)","5999","Comms - Mobile Telephones","27/01/2020"
"Wolverhampton City Council","http://opendatacommunities.org/id/metropolitan-district-council/wolverhampton","D E S LTD",212.1,"Document Centre - General","8911","Materials","27/01/2020"
"Wolverhampton City Council","http://opendatacommunities.org/id/metropolitan-district-council/wolverhampton","ADOBE IL CREATIVE CLD",606.72,"Document Centre - General","5734","Computing - Purchase of Software","27/01/2020"
"Wolverhampton City Council","http://opendatacommunities.org/id/metropolitan-district-council/wolverhampton","ARGOS LTD",37.49,"LAC Transitions Team","5310","Client Allowances","27/01/2020"
"Wolverhampton City Council","http://opendatacommunities.org/id/metropolitan-district-council/wolverhampton","ARGOS LTD",9.99,"LAC Transitions Team","5310","Client Allowances","27/01/2020"
"Wolverhampton City Council","http://opendatacommunities.org/id/metropolitan-district-council/wolverhampton","ARGOS LTD",96.93,"LAC Transitions Team","5310","Client Allowances","27/01/2020"
"Wolverhampton City Council","http://opendatacommunities.org/id/metropolitan-district-council/wolverhampton","WEST MID TRAVEL",436.35,"IMPACT","4131","Public Transportation","27/01/2020"
"Wolverhampton City Council","http://opendatacommunities.org/id/metropolitan-district-council/wolverhampton","WEST MIDLANDS METRO",4.8,"Collections","4111","Public Transportation","27/01/2020"
"Wolverhampton City Council","http://opendatacommunities.org/id/metropolitan-district-council/wolverhampton","FACEBK 9VZMLR2HK2",17,"Parent/Partnership Service","7311","Marketing/Advertising","27/01/2020"
"Wolverhampton City Council","http://opendatacommunities.org/id/metropolitan-district-council/wolverhampton","NATWEST BANK",130,"NRPF","6011","No Recourse to Public Funds","27/01/2020"
"Wolverhampton City Council","http://opendatacommunities.org/id/metropolitan-district-council/wolverhampton","LIDL GB",3.88,"Discretionary Fund","5411","Materials","27/01/2020"
"Wolverhampton City Council","http://opendatacommunities.org/id/metropolitan-district-council/wolverhampton","OAKLAND",160,"NRPF","7011","No Recourse to Public Funds","27/01/2020"
"Wolverhampton City Council","http://opendatacommunities.org/id/metropolitan-district-council/wolverhampton","NEXT RETAIL LTD",21.67,"Mayoral Expenses","5651","Clothing / Uniforms","27/01/2020"
"Wolverhampton City Council","http://opendatacommunities.org/id/metropolitan-district-council/wolverhampton","Trainline",69.19,"Safeguarding Admin Resource","4112","Client Transport","27/01/2020"
"Wolverhampton City Council","http://opendatacommunities.org/id/metropolitan-district-council/wolverhampton","PREMIER INN",115,"Fostering Team","3811","Accommodation Costs","27/01/2020"
"Wolverhampton City Council","http://opendatacommunities.org/id/metropolitan-district-council/wolverhampton","CARVER/WOLVERHAMPTON/L",120.36,"Ground Maintenance East","5211","Materials","27/01/2020"
"Wolverhampton City Council","http://opendatacommunities.org/id/metropolitan-district-council/wolverhampton","thetrainline.com",42.74,"Aldersley Leisure Village","4112","Public Transport","27/01/2020"
"Wolverhampton City Council","http://opendatacommunities.org/id/metropolitan-district-council/wolverhampton","Trainline",42.74,"Bert Williams Leisure Centre","4112","Accommodation Costs","27/01/2020"
"Wolverhampton City Council","http://opendatacommunities.org/id/metropolitan-district-council/wolverhampton","POST OFFICE COUNTER",29.7,"Looked After Team 2","9402","Comms - Postage","27/01/2020"
"Wolverhampton City Council","http://opendatacommunities.org/id/metropolitan-district-council/wolverhampton","WP-CENTRAL TAXIS L",370,"LAC Team","4121","Client Transport","27/01/2020"
"Wolverhampton City Council","http://opendatacommunities.org/id/metropolitan-district-council/wolverhampton","APPLE.COM/BILL",9.99,"Managing Director","5735","Computing - Purchase of Software","27/01/2020"
"Wolverhampton City Council","http://opendatacommunities.org/id/metropolitan-district-council/wolverhampton","TICKET OFFICE-INTE",640,"Corporate Events","7997","Hospitality","27/01/2020"
"Wolverhampton City Council","http://opendatacommunities.org/id/metropolitan-district-council/wolverhampton","Avanti West Coast",35.6,"Looked After Team 2","4112","Client Transport","27/01/2020"
"Wolverhampton City Council","http://opendatacommunities.org/id/metropolitan-district-council/wolverhampton","AMZNMKTPLACE AMAZON.CO",3.14,"Talk English","5999","Equipment & Purchase","27/01/2020"
"Wolverhampton City Council","http://opendatacommunities.org/id/metropolitan-district-council/wolverhampton","AMZNMKTPLACE AMAZON.CO",9.85,"LAC Transitions Accommodation","5999","Client Allowances","27/01/2020"
"Wolverhampton City Council","http://opendatacommunities.org/id/metropolitan-district-council/wolverhampton","AMZNMktplace",21.12,"Blakenhall Resource Centre","5999","Equipment & Purchase","27/01/2020"
"Wolverhampton City Council","http://opendatacommunities.org/id/metropolitan-district-council/wolverhampton","AMZNMktplace",12.05,"Blakenhall Resource Centre","5999","Equipment & Purchase","27/01/2020"
"Wolverhampton City Council","http://opendatacommunities.org/id/metropolitan-district-council/wolverhampton","AMZNMktplace",2.07,"Blakenhall Resource Centre","5999","Equipment & Purchase","27/01/2020"
"Wolverhampton City Council","http://opendatacommunities.org/id/metropolitan-district-council/wolverhampton","AMZNMktplace",2.6,"Blakenhall Resource Centre","5999","Equipment & Purchase","27/01/2020"
"Wolverhampton City Council","http://opendatacommunities.org/id/metropolitan-district-council/wolverhampton","WEST MID TRAVEL",446.35,"Community Enablement","4131","Public Transport","27/01/2020"
"Wolverhampton City Council","http://opendatacommunities.org/id/metropolitan-district-council/wolverhampton","ARGOS LTD",22,"Duke Street Bungalows","5310","Equipment Catering","27/01/2020"
"Wolverhampton City Council","http://opendatacommunities.org/id/metropolitan-district-council/wolverhampton","AMZNMKTPLACE AMAZON.CO",21.48,"SEN Special Education Admin","5999","Equipment & Purchase","27/01/2020"
"Wolverhampton City Council","http://opendatacommunities.org/id/metropolitan-district-council/wolverhampton","Amazon.co.uk 9S0S48DT5",7.99,"Global Budgets","5969","Books","27/01/2020"
"Wolverhampton City Council","http://opendatacommunities.org/id/metropolitan-district-council/wolverhampton","Amazon.co.uk 8R8BN0AS5",17.5,"Global Budgets","5969","Books","27/01/2020"
"Wolverhampton City Council","http://opendatacommunities.org/id/metropolitan-district-council/wolverhampton","AMZNMktplace",4.77,"Global Budgets","5999","Books","27/01/2020"
"Wolverhampton City Council","http://opendatacommunities.org/id/metropolitan-district-council/wolverhampton","WICKES WOLVERHAMPTON",20.83,"Specialist Support Service - North","5211","Equipment - R & M","27/01/2020"
"Wolverhampton City Council","http://opendatacommunities.org/id/metropolitan-district-council/wolverhampton","B & Q 1243",2.5,"Community Enablement","5200","Materials","27/01/2020"
"Wolverhampton City Council","http://opendatacommunities.org/id/metropolitan-district-council/wolverhampton","HERON FOODS LTD",32.86,"Ernest Bold Court","5499","Provisions (Not for resale)","27/01/2020"
"Wolverhampton City Council","http://opendatacommunities.org/id/metropolitan-district-council/wolverhampton","ASDA GROCERIES ONLINE",57.78,"Ernest Bold Court","5411","Provisions (Not for resale)","27/01/2020"
"Wolverhampton City Council","http://opendatacommunities.org/id/metropolitan-district-council/wolverhampton","ASDA GROCERIES ONLINE",5,"Ernest Bold Court","5411","Provisions (Not for resale)","27/01/2020"
"Wolverhampton City Council","http://opendatacommunities.org/id/metropolitan-district-council/wolverhampton","ROOKERY Sainsburys Ba",200,"Duke Street Bungalows","6011","Provisions (Not for resale)","27/01/2020"
"Wolverhampton City Council","http://opendatacommunities.org/id/metropolitan-district-council/wolverhampton","CUMMINGS BROTHERS LOCK",95.85,"Ernest Bold Court","7399","Equipment - R & M","27/01/2020"
"Wolverhampton City Council","http://opendatacommunities.org/id/metropolitan-district-council/wolverhampton","AMZNMKTPLACE AMAZON.CO",183.33,"Learning Disabilities Management","5999","Services - Consultants","27/01/2020"
"Wolverhampton City Council","http://opendatacommunities.org/id/metropolitan-district-council/wolverhampton","ARGOS LTD",19.99,"Hickman Avenue Depot","5310","Equipment & Purchase","27/01/2020"
"Wolverhampton City Council","http://opendatacommunities.org/id/metropolitan-district-council/wolverhampton","AMZNMktplace",29.94,"Music Support Team","5999","Services - Professional Fees","27/01/2020"
"Wolverhampton City Council","http://opendatacommunities.org/id/metropolitan-district-council/wolverhampton","AMZNMktplace",24.42,"Music Support Team","5999","Equipment & Purchase","27/01/2020"
"Wolverhampton City Council","http://opendatacommunities.org/id/metropolitan-district-council/wolverhampton","Amazon.co.uk KE41I6YG5",79.43,"Northicote Farm","5969","Clothing / Uniforms","27/01/2020"
"Wolverhampton City Council","http://opendatacommunities.org/id/metropolitan-district-council/wolverhampton","Amazon.co.uk A45SS5CE5",26.47,"Northicote Farm","5969","Clothing / Uniforms","27/01/2020"
"Wolverhampton City Council","http://opendatacommunities.org/id/metropolitan-district-council/wolverhampton","EB  AMHP-RESEARCH INFO",18,"Mental Health Assessment & Care Mgmt","7399","Conference Expenses","24/01/2020"
"Wolverhampton City Council","http://opendatacommunities.org/id/metropolitan-district-council/wolverhampton","DECATHLON UK",79.8,"Towers Outdoor Education Centre","5941","-","24/01/2020"
"Wolverhampton City Council","http://opendatacommunities.org/id/metropolitan-district-council/wolverhampton","LICENSING COUNTER",21,"Art Gallery","9399","Services - General Licences","24/01/2020"
"Wolverhampton City Council","http://opendatacommunities.org/id/metropolitan-district-council/wolverhampton","FACEBK  449C4RWCW2",7,"The Little Civic","7311","Marketing \ Non-staff advertising","24/01/2020"
"Wolverhampton City Council","http://opendatacommunities.org/id/metropolitan-district-council/wolverhampton","FACEBK  VDT3VQ6DW2",7,"The Little Civic","7311","Marketing \ Non-staff advertising","24/01/2020"
"Wolverhampton City Council","http://opendatacommunities.org/id/metropolitan-district-council/wolverhampton","FACEBK  BW8XBR2DW2",5,"The Little Civic","7311","Marketing \ Non-staff advertising","24/01/2020"
"Wolverhampton City Council","http://opendatacommunities.org/id/metropolitan-district-council/wolverhampton","Amazon.co.uk 1P9QU2AR5",20.82,"Strategic ICTS (ICT Serv Budget)","5969","Computing - Consumables","24/01/2020"
"Wolverhampton City Council","http://opendatacommunities.org/id/metropolitan-district-council/wolverhampton","Amazon.co.uk SY97U6M75",45.79,"Strategic ICTS (ICT Serv Budget)","5969","Computing - Consumables","24/01/2020"
"Wolverhampton City Council","http://opendatacommunities.org/id/metropolitan-district-council/wolverhampton","thetrainline.com",517.3,"Adult Services - West","4112","Public Transport","24/01/2020"
"Wolverhampton City Council","http://opendatacommunities.org/id/metropolitan-district-council/wolverhampton","PO ROUGH HAY 0792",100,"Key to Inspiration","6011","Materials","24/01/2020"
"Wolverhampton City Council","http://opendatacommunities.org/id/metropolitan-district-council/wolverhampton","APPLIANCEDIRECT CO",151.43,"Safeguarding Admin Resource","5734","Equipment - Health and Safety","24/01/2020"
"Wolverhampton City Council","http://opendatacommunities.org/id/metropolitan-district-council/wolverhampton","Trainline",-75.5,"Healthy Ageing","4112","Public Transport","24/01/2020"
"Wolverhampton City Council","http://opendatacommunities.org/id/metropolitan-district-council/wolverhampton","Trainline",76.82,"Healthy Ageing","4112","Public Transport","24/01/2020"
"Wolverhampton City Council","http://opendatacommunities.org/id/metropolitan-district-council/wolverhampton","thetrainline.com",87.5,"Healthy Ageing","4112","Public Transportation","24/01/2020"
"Wolverhampton City Council","http://opendatacommunities.org/id/metropolitan-district-council/wolverhampton","B&M RETAIL",4.48,"LAC Transitions Accommodation","5310","Client Allowances","24/01/2020"
"Wolverhampton City Council","http://opendatacommunities.org/id/metropolitan-district-council/wolverhampton","AMZNMktplace",14.16,"Blakenhall Resource Centre","5999","Equipment & Purchase","24/01/2020"
"Wolverhampton City Council","http://opendatacommunities.org/id/metropolitan-district-council/wolverhampton","AMZNMktplace",23.75,"Blakenhall Resource Centre","5999","Equipment & Purchase","24/01/2020"
"Wolverhampton City Council","http://opendatacommunities.org/id/metropolitan-district-council/wolverhampton","AMZNMktplace",7.72,"Blakenhall Resource Centre","5999","Equipment & Purchase","24/01/2020"
"Wolverhampton City Council","http://opendatacommunities.org/id/metropolitan-district-council/wolverhampton","AMZNMktplace",49.99,"Blakenhall Resource Centre","5999","Equipment & Purchase","24/01/2020"
"Wolverhampton City Council","http://opendatacommunities.org/id/metropolitan-district-council/wolverhampton","AMZNMktplace",4.79,"Blakenhall Resource Centre","5999","Equipment & Purchase","24/01/2020"
"Wolverhampton City Council","http://opendatacommunities.org/id/metropolitan-district-council/wolverhampton","AMZNMktplace",111,"SEN Sensory Inclusion","5999","Equipment & Purchase","24/01/2020"
"Wolverhampton City Council","http://opendatacommunities.org/id/metropolitan-district-council/wolverhampton","AMZNMktplace",8.42,"Global Budgets","5999","Books","24/01/2020"
"Wolverhampton City Council","http://opendatacommunities.org/id/metropolitan-district-council/wolverhampton","B & Q 1243",12.5,"Ernest Bold Court","5200","Fixtures and Fittings - R&M","24/01/2020"
"Wolverhampton City Council","http://opendatacommunities.org/id/metropolitan-district-council/wolverhampton","B & Q 1243",38.33,"Ernest Bold Court","5200","Fixtures and Fittings - R&M","24/01/2020"
"Wolverhampton City Council","http://opendatacommunities.org/id/metropolitan-district-council/wolverhampton","Trainline",22.74,"Environmental Crime and Consumer Protect","4112","Services - Fees and Charges","24/01/2020"
"Wolverhampton City Council","http://opendatacommunities.org/id/metropolitan-district-council/wolverhampton","ASDA SUPERSTORE",10,"Libraries","5411","Marketing \ Non-staff advertising","24/01/2020"
"Wolverhampton City Council","http://opendatacommunities.org/id/metropolitan-district-council/wolverhampton","PAYPAL  ALLFLEXUKGR",65,"Northicote Farm","5995","Equipment & Purchase","24/01/2020"
"Wolverhampton City Council","http://opendatacommunities.org/id/metropolitan-district-council/wolverhampton","SAINSBURYS SACAT (2340",4.2,"Mayoral Expenses","5411","Hospitality","23/01/2020"
"Wolverhampton City Council","http://opendatacommunities.org/id/metropolitan-district-council/wolverhampton","CITY OF WOLVERHAMPTON",27,"LAC Team","9399","Services - Fees and Charges","23/01/2020"
"Wolverhampton City Council","http://opendatacommunities.org/id/metropolitan-district-council/wolverhampton","ASDA GROCERIES ONLINE",3.04,"Upper Pendeford Farm Childrens Home","5411","Provisions (Not for resale)","23/01/2020"
"Wolverhampton City Council","http://opendatacommunities.org/id/metropolitan-district-council/wolverhampton","ASDA GROCERIES ONLINE",208.34,"Upper Pendeford Farm Childrens Home","5411","Provisions (Not for resale)","23/01/2020"
"Wolverhampton City Council","http://opendatacommunities.org/id/metropolitan-district-council/wolverhampton","MB FIBREGLASS",23.32,"Language Studies Delivery Area","5399","Materials","23/01/2020"
"Wolverhampton City Council","http://opendatacommunities.org/id/metropolitan-district-council/wolverhampton","MARS DRINKS UK",410.97,"Community Enablement","5441","NC Supplies to service users","23/01/2020"
"Wolverhampton City Council","http://opendatacommunities.org/id/metropolitan-district-council/wolverhampton","TVLICENSING.CO.UK",154.5,"Blakenhall Resource Centre","7392","Services - General Licences","23/01/2020"
"Wolverhampton City Council","http://opendatacommunities.org/id/metropolitan-district-council/wolverhampton","AMZNMKTPLACE AMAZON.CO",14.55,"SEN Sensory Inclusion","5999","Equipment & Purchase","23/01/2020"
"Wolverhampton City Council","http://opendatacommunities.org/id/metropolitan-district-council/wolverhampton","AMZNMKTPLACE AMAZON.CO",5.42,"SEN Sensory Inclusion","5999","Equipment & Purchase","23/01/2020"
"Wolverhampton City Council","http://opendatacommunities.org/id/metropolitan-district-council/wolverhampton","AMZNMKTPLACE AMAZON.CO",45.46,"SEN Sensory Inclusion","5999","Equipment & Purchase","23/01/2020"
"Wolverhampton City Council","http://opendatacommunities.org/id/metropolitan-district-council/wolverhampton","AMZNMktplace",82.5,"Global Budgets","5999","Equipment & Purchase","23/01/2020"
"Wolverhampton City Council","http://opendatacommunities.org/id/metropolitan-district-council/wolverhampton","ASDA GROCERIES ONLINE",63.52,"Ernest Bold Court","5411","Provisions (Not for resale)","23/01/2020"
"Wolverhampton City Council","http://opendatacommunities.org/id/metropolitan-district-council/wolverhampton","GEN REGISTER OFFICE",38,"Centralised External Legal Costs","9399","Services - Fees and Charges","23/01/2020"
"Wolverhampton City Council","http://opendatacommunities.org/id/metropolitan-district-council/wolverhampton","CITY OF WOLVERHAMPTON",60,"Centralised External Legal Costs","9399","Services - Fees and Charges","23/01/2020"
"Wolverhampton City Council","http://opendatacommunities.org/id/metropolitan-district-council/wolverhampton","CITY OF WOLVERHAMPTON",40,"Centralised External Legal Costs","9399","Services - Fees and Charges","23/01/2020"
"Wolverhampton City Council","http://opendatacommunities.org/id/metropolitan-district-council/wolverhampton","AMZNMktplace",137.46,"Environmental Crime and Consumer Protect","5999","Services - Fees and Charges","23/01/2020"
"Wolverhampton City Council","http://opendatacommunities.org/id/metropolitan-district-council/wolverhampton","ALDI 94 772",8.69,"Libraries","5411","Marketing \ Non-staff advertising","23/01/2020"
"Wolverhampton City Council","http://opendatacommunities.org/id/metropolitan-district-council/wolverhampton","SAINSBURYS SACAT (2340",5.8,"Libraries","5411","Marketing \ Non-staff advertising","23/01/2020"
"Wolverhampton City Council","http://opendatacommunities.org/id/metropolitan-district-council/wolverhampton","HALFORDS 0775",124.97,"Fleet Management","5940","Materials","23/01/2020"
"Wolverhampton City Council","http://opendatacommunities.org/id/metropolitan-district-council/wolverhampton","TRAINGENIUS.COM",209.1,"Strategic Financial Services","4112","Public Transport","23/01/2020"
"Wolverhampton City Council","http://opendatacommunities.org/id/metropolitan-district-council/wolverhampton","CO-OP GROUP 070362",10.8,"Northicote Farm","5411","Provisions (Not for resale)","23/01/2020"
"Wolverhampton City Council","http://opendatacommunities.org/id/metropolitan-district-council/wolverhampton","AMZNMKTPLACE AMAZON.CO",12.45,"Northicote Farm","5999","Equipment & Purchase","23/01/2020"
"Wolverhampton City Council","http://opendatacommunities.org/id/metropolitan-district-council/wolverhampton","A.B.C. COUNTDOWN CARS",40,"Mental Health Assessment & Care Mgmt","4121","Client Transport","23/01/2020"
"Wolverhampton City Council","http://opendatacommunities.org/id/metropolitan-district-council/wolverhampton","AMZNMktplace",29.37,"WV Active Marketing","5999","Marketing/Advertising","23/01/2020"
"Wolverhampton City Council","http://opendatacommunities.org/id/metropolitan-district-council/wolverhampton","ASDA GROCERIES ONLINE",-2.65,"Key to Inspiration","5411","-","23/01/2020"
"Wolverhampton City Council","http://opendatacommunities.org/id/metropolitan-district-council/wolverhampton","SAINSBURYS SACAT (2340",12.7,"Key to Inspiration","5411","-","23/01/2020"
"Wolverhampton City Council","http://opendatacommunities.org/id/metropolitan-district-council/wolverhampton","SAINSBURYS (2340)",7.95,"Key to Inspiration","5411","-","23/01/2020"
"Wolverhampton City Council","http://opendatacommunities.org/id/metropolitan-district-council/wolverhampton","ASDA GROCERIES ONLINE",145.3,"Key to Inspiration","5411","-","23/01/2020"
"Wolverhampton City Council","http://opendatacommunities.org/id/metropolitan-district-council/wolverhampton","FACEBK  VKDBZQSCW2",3,"The Little Civic","7311","Marketing \ Non-staff advertising","23/01/2020"
"Wolverhampton City Council","http://opendatacommunities.org/id/metropolitan-district-council/wolverhampton","FACEBK  4PUYTQJCW2",1.5,"The Little Civic","7311","Marketing \ Non-staff advertising","23/01/2020"
"Wolverhampton City Council","http://opendatacommunities.org/id/metropolitan-district-council/wolverhampton","FACEBK  TGBQZQECW2",2.21,"The Little Civic","7311","Marketing \ Non-staff advertising","23/01/2020"
"Wolverhampton City Council","http://opendatacommunities.org/id/metropolitan-district-council/wolverhampton","FACEBK  FWFGLQADW2",2,"The Little Civic","7311","Marketing \ Non-staff advertising","23/01/2020"
"Wolverhampton City Council","http://opendatacommunities.org/id/metropolitan-district-council/wolverhampton","FACEBK  C4R9ZQSCW2",1.5,"The Little Civic","7311","Marketing \ Non-staff advertising","23/01/2020"
"Wolverhampton City Council","http://opendatacommunities.org/id/metropolitan-district-council/wolverhampton","ASDA GROCERIES ONLINE",200.51,"Bradley Resource Centre","5411","Provisions (Not for resale)","23/01/2020"
"Wolverhampton City Council","http://opendatacommunities.org/id/metropolitan-district-council/wolverhampton","ASDA GROCERIES ONLINE",174.54,"Bradley Resource Centre","5411","Provisions (Not for resale)","23/01/2020"
"Wolverhampton City Council","http://opendatacommunities.org/id/metropolitan-district-council/wolverhampton","AMZNMKTPLACE AMAZON.CO",64.17,"Strategic ICTS (ICT Serv Budget)","5999","Computing - Purchase of Hardware","23/01/2020"
"Wolverhampton City Council","http://opendatacommunities.org/id/metropolitan-district-council/wolverhampton","WWW.PRESERVATIONEQUIPM",118.45,"Collections","4225","Materials","23/01/2020"
"Wolverhampton City Council","http://opendatacommunities.org/id/metropolitan-district-council/wolverhampton","CITY OF WOLVERHAMPTON",27,"Court Team","9399","Section 17","23/01/2020"
"Wolverhampton City Council","http://opendatacommunities.org/id/metropolitan-district-council/wolverhampton","PURPLE TREE TRADING LT",6.37,"Youth Offending Team","5811","Catering","23/01/2020"
"Wolverhampton City Council","http://opendatacommunities.org/id/metropolitan-district-council/wolverhampton","BURGER KING",4.16,"LAC Transitions Team","5812","Client Allowances","23/01/2020"
"Wolverhampton City Council","http://opendatacommunities.org/id/metropolitan-district-council/wolverhampton","Amazon.co.uk 4P4Z06YM5",15.63,"Regional Adoption Agency","5969","Stationery","23/01/2020"
"Wolverhampton City Council","http://opendatacommunities.org/id/metropolitan-district-council/wolverhampton","WOLVERHAMPTON T/O",6.1,"Economic Development","4112","-","23/01/2020"
"Wolverhampton City Council","http://opendatacommunities.org/id/metropolitan-district-council/wolverhampton","NEWITTS.COM",36.29,"Bert Williams Leisure Centre","5655","Equipment & Purchase","23/01/2020"
"Wolverhampton City Council","http://opendatacommunities.org/id/metropolitan-district-council/wolverhampton","Amazon.co.uk X53Z22YS5",14.56,"Members Expenses","5969","Equipment & Purchase","22/01/2020"
"Wolverhampton City Council","http://opendatacommunities.org/id/metropolitan-district-council/wolverhampton","ENJOY WOLVERHAMPTON",100,"Environmental Crime and Consumer Protect","5399","Equipment & Purchase","22/01/2020"
"Wolverhampton City Council","http://opendatacommunities.org/id/metropolitan-district-council/wolverhampton","ASDA STORES 4452",2.08,"Duke Street Bungalows","5411","Equipment Catering","22/01/2020"
"Wolverhampton City Council","http://opendatacommunities.org/id/metropolitan-district-council/wolverhampton","LIVEGROUP.CO.UK",195,"Workforce Development","7399","Training Expenses","22/01/2020"
"Wolverhampton City Council","http://opendatacommunities.org/id/metropolitan-district-council/wolverhampton","IZ  Gails Blinds Ltd",178,"Ernest Bold Court","5999","Equipment & Purchase","22/01/2020"
"Wolverhampton City Council","http://opendatacommunities.org/id/metropolitan-district-council/wolverhampton","ARGOS WOLVERHAMPTO",19.98,"NRPF","5310","No Recourse to Public Funds","22/01/2020"
"Wolverhampton City Council","http://opendatacommunities.org/id/metropolitan-district-council/wolverhampton","NATWEST BANK",200,"NRPF","6011","No Recourse to Public Funds","22/01/2020"
"Wolverhampton City Council","http://opendatacommunities.org/id/metropolitan-district-council/wolverhampton","HALFORDS 0775",41.66,"Fleet Management","5940","Materials","22/01/2020"
"Wolverhampton City Council","http://opendatacommunities.org/id/metropolitan-district-council/wolverhampton","AMZNMktplace",59.37,"Music Support Team","5999","Services - Professional Fees","22/01/2020"
"Wolverhampton City Council","http://opendatacommunities.org/id/metropolitan-district-council/wolverhampton","ROYAL BK OF SCOTLAND",200,"Duke Street Bungalows","6011","Provisions (Not for resale)","22/01/2020"
"Wolverhampton City Council","http://opendatacommunities.org/id/metropolitan-district-council/wolverhampton","WOLVERHAMPTON T/O",184,"Headstart Phase 3","4112","Public Transport","22/01/2020"
"Wolverhampton City Council","http://opendatacommunities.org/id/metropolitan-district-council/wolverhampton","WOLVERHAMPTON T/O",31,"Headstart Phase 3","4112","Public Transport","22/01/2020"
"Wolverhampton City Council","http://opendatacommunities.org/id/metropolitan-district-council/wolverhampton","WOLVERHAMPTON T/O",1472,"Headstart Phase 3","4112","Public Transport","22/01/2020"
"Wolverhampton City Council","http://opendatacommunities.org/id/metropolitan-district-council/wolverhampton","WAITROSE 696",19.67,"Power2 Team","5411","Subsistence","22/01/2020"
"Wolverhampton City Council","http://opendatacommunities.org/id/metropolitan-district-council/wolverhampton","TESCO STORES 5194",3.5,"Towers Outdoor Education Centre","5411","Provisions (Not for resale)","22/01/2020"
"Wolverhampton City Council","http://opendatacommunities.org/id/metropolitan-district-council/wolverhampton","POST OFFICE COUNTER",14,"Corporate Parenting","9402","Comms - Postage","22/01/2020"
"Wolverhampton City Council","http://opendatacommunities.org/id/metropolitan-district-council/wolverhampton","J D SPORTS PLC",140.05,"Key to Inspiration","5941","-","22/01/2020"
"Wolverhampton City Council","http://opendatacommunities.org/id/metropolitan-district-council/wolverhampton","AK HAIR AND COSMATIC",27.38,"Key to Inspiration","5977","-","22/01/2020"
"Wolverhampton City Council","http://opendatacommunities.org/id/metropolitan-district-council/wolverhampton","CARD FACTORY",5.56,"Key to Inspiration","5947","-","22/01/2020"
"Wolverhampton City Council","http://opendatacommunities.org/id/metropolitan-district-council/wolverhampton","WWW.VERYDISPLAYS.COM",78.09,"Document Centre - General","5999","Materials","22/01/2020"
"Wolverhampton City Council","http://opendatacommunities.org/id/metropolitan-district-council/wolverhampton","STAFFORD T/O",42.3,"Research & Development","4112","Public Transportation","22/01/2020"
"Wolverhampton City Council","http://opendatacommunities.org/id/metropolitan-district-council/wolverhampton","WWW.KITEPACKAGING.CO.U",39.89,"Technician","5085","Materials","22/01/2020"
"Wolverhampton City Council","http://opendatacommunities.org/id/metropolitan-district-council/wolverhampton","SURVEYMONKEY",320,"Parent/Partnership Service","7372","Subscriptions","22/01/2020"
"Wolverhampton City Council","http://opendatacommunities.org/id/metropolitan-district-council/wolverhampton","TESCO STORES 5397",25,"CIN/CP Social Work Unit - Area 1","5411","Section 17","22/01/2020"
"Wolverhampton City Council","http://opendatacommunities.org/id/metropolitan-district-council/wolverhampton","WM MORRISON FOOD.COM",129.59,"Discretionary Fund","5411","Materials","22/01/2020"
"Wolverhampton City Council","http://opendatacommunities.org/id/metropolitan-district-council/wolverhampton","CURRYS ONLINE",307.5,"Key to Inspiration","5732","Equipment & Purchase","22/01/2020"
"Wolverhampton City Council","http://opendatacommunities.org/id/metropolitan-district-council/wolverhampton","CardtronicsUK",180,"Key to Inspiration","6011","Materials","22/01/2020"
"Wolverhampton City Council","http://opendatacommunities.org/id/metropolitan-district-council/wolverhampton","BUYITDIRECT CO UK",58.88,"Key to Inspiration","5734","Furniture","22/01/2020"
"Wolverhampton City Council","http://opendatacommunities.org/id/metropolitan-district-council/wolverhampton","NATWEST BANK",200,"NRPF","6011","Client Allowances","22/01/2020"
"Wolverhampton City Council","http://opendatacommunities.org/id/metropolitan-district-council/wolverhampton","SAINSBURYS (2340)",11.42,"LAC Transitions Team","5411","Client Allowances","22/01/2020"
"Wolverhampton City Council","http://opendatacommunities.org/id/metropolitan-district-council/wolverhampton","Amazon.co.uk OI8RJ0NJ5",75,"Regional Adoption Agency","5969","Books","22/01/2020"
"Wolverhampton City Council","http://opendatacommunities.org/id/metropolitan-district-council/wolverhampton","thetrainline.com",293.45,"Fostering Team","4112","Public Transport","22/01/2020"
"Wolverhampton City Council","http://opendatacommunities.org/id/metropolitan-district-council/wolverhampton","HOME BARGAINS WOLVERHA",13.3,"Aldersley Leisure Village","5251","Equipment & Purchase","22/01/2020"
"Wolverhampton City Council","http://opendatacommunities.org/id/metropolitan-district-council/wolverhampton","Trainline",95.14,"Work Box","4112","Public Transport","22/01/2020"
"Wolverhampton City Council","http://opendatacommunities.org/id/metropolitan-district-council/wolverhampton","AMZNMktplace",14.53,"Safeguarding Partnership Board","5999","Stationery","22/01/2020"
"Wolverhampton City Council","http://opendatacommunities.org/id/metropolitan-district-council/wolverhampton","CARESHOP",132.6,"Specialist Support Service - North","5999","Materials","22/01/2020"
"Wolverhampton City Council","http://opendatacommunities.org/id/metropolitan-district-council/wolverhampton","AMZNMktplace",10.4,"SEN Sensory Inclusion","5999","Equipment & Purchase","22/01/2020"
"Wolverhampton City Council","http://opendatacommunities.org/id/metropolitan-district-council/wolverhampton","Amazon.co.uk QL5530Z35",87.95,"SEN Sensory Inclusion","5969","Equipment & Purchase","22/01/2020"
"Wolverhampton City Council","http://opendatacommunities.org/id/metropolitan-district-council/wolverhampton","AMZNMktplace",9.96,"SEN Sensory Inclusion","5999","Equipment & Purchase","22/01/2020"
"Wolverhampton City Council","http://opendatacommunities.org/id/metropolitan-district-council/wolverhampton","CARE MODELS 2020: INVE",747,"Head of Strategic Commissioning � People","2741","Conference Expenses","22/01/2020"
"Wolverhampton City Council","http://opendatacommunities.org/id/metropolitan-district-council/wolverhampton","ASDA SUPERSTORE",34.87,"EIP Locality 3","5411","Grant Payments","22/01/2020"
"Wolverhampton City Council","http://opendatacommunities.org/id/metropolitan-district-council/wolverhampton","ASDA SUPERSTORE",35,"EIP Locality 3","5411","Grant Payments","22/01/2020"
"Wolverhampton City Council","http://opendatacommunities.org/id/metropolitan-district-council/wolverhampton","BARCLAYS",100,"EIP Locality 3","6011","Educ Trips, Holidays, Outings, Activity","22/01/2020"
"Wolverhampton City Council","http://opendatacommunities.org/id/metropolitan-district-council/wolverhampton","B & Q 1243",52.5,"HARP","5200","Cleaning Supplies and Materials","22/01/2020"
"Wolverhampton City Council","http://opendatacommunities.org/id/metropolitan-district-council/wolverhampton","CITY OF WOLVERHAMPTON",39,"LAC Team","9399","Financial Assistance In Exceptional Circ","22/01/2020"
"Wolverhampton City Council","http://opendatacommunities.org/id/metropolitan-district-council/wolverhampton","Trainline",155.68,"LAC Team","4112","Public Transport","22/01/2020"
"Wolverhampton City Council","http://opendatacommunities.org/id/metropolitan-district-council/wolverhampton","Avanti West Coast",60.5,"Looked After Team 2","4112","Public Transport","22/01/2020"
"Wolverhampton City Council","http://opendatacommunities.org/id/metropolitan-district-council/wolverhampton","Allpay  ACCORD HOUSING",346.64,"LAC Transitions Team","8398","Client Allowances","22/01/2020"
"Wolverhampton City Council","http://opendatacommunities.org/id/metropolitan-district-council/wolverhampton","TESCO STORES 5194",28.89,"Towers Outdoor Education Centre","5411","Provisions (Not for resale)","21/01/2020"
"Wolverhampton City Council","http://opendatacommunities.org/id/metropolitan-district-council/wolverhampton","WM MORRISONS STORE",6.6,"Corporate Parenting","5411","Direct Work With Children","21/01/2020"
"Wolverhampton City Council","http://opendatacommunities.org/id/metropolitan-district-council/wolverhampton","CURRYS ONLINE",149.17,"LAC Transitions Team","5732","Client Allowances","21/01/2020"
"Wolverhampton City Council","http://opendatacommunities.org/id/metropolitan-district-council/wolverhampton","NETFLIX.COM",11.99,"Key to Inspiration","4899","-","21/01/2020"
"Wolverhampton City Council","http://opendatacommunities.org/id/metropolitan-district-council/wolverhampton","SAINSBURYS (2340)",100.73,"Bradley Resource Centre","5411","Provisions (Not for resale)","21/01/2020"
"Wolverhampton City Council","http://opendatacommunities.org/id/metropolitan-district-council/wolverhampton","WOLVERHAMPTON T/O",9,"IMPACT","4112","Public Transportation","21/01/2020"
"Wolverhampton City Council","http://opendatacommunities.org/id/metropolitan-district-council/wolverhampton","AMZNMKTPLACE AMAZON.CO",7.46,"IMPACT","5999","Equipment & Purchase","21/01/2020"
"Wolverhampton City Council","http://opendatacommunities.org/id/metropolitan-district-council/wolverhampton","WOLVERHAMPTON T/O",5.08,"LAC Transitions Team","4112","Client Transport","21/01/2020"
"Wolverhampton City Council","http://opendatacommunities.org/id/metropolitan-district-council/wolverhampton","AMZNMktplace",15.13,"Regional Adoption Agency","5999","Stationery","21/01/2020"
"Wolverhampton City Council","http://opendatacommunities.org/id/metropolitan-district-council/wolverhampton","PREMIER INN",61,"Regional Adoption Agency","3811","Accommodation Costs","21/01/2020"
"Wolverhampton City Council","http://opendatacommunities.org/id/metropolitan-district-council/wolverhampton","PREMIER INN",79.5,"Regional Adoption Agency","3811","Accommodation Costs","21/01/2020"
"Wolverhampton City Council","http://opendatacommunities.org/id/metropolitan-district-council/wolverhampton","Amazon.co.uk B798O6QX5",34.99,"Regional Adoption Agency","5969","Equipment - Health and Safety","21/01/2020"
"Wolverhampton City Council","http://opendatacommunities.org/id/metropolitan-district-council/wolverhampton","Avanti West Coast",137.5,"Regional Adoption Agency","4112","Public Transport","21/01/2020"
"Wolverhampton City Council","http://opendatacommunities.org/id/metropolitan-district-council/wolverhampton","WP-CENTRAL TAXIS L",75,"Fostering Team & Allowances","4121","Client Transport","21/01/2020"
"Wolverhampton City Council","http://opendatacommunities.org/id/metropolitan-district-council/wolverhampton","Amazon Prime YB49V78Y5",6.66,"Register Office","5968","Subscriptions","21/01/2020"
"Wolverhampton City Council","http://opendatacommunities.org/id/metropolitan-district-council/wolverhampton","WWW.HSSPORTS.CO.UK",173,"Aldersley Leisure Village","5941","Equipment & Purchase","21/01/2020"
"Wolverhampton City Council","http://opendatacommunities.org/id/metropolitan-district-council/wolverhampton","Amazon.co.uk DG8ZX65P5",8.33,"Bert Williams Leisure Centre","5969","Equipment & Purchase","21/01/2020"
"Wolverhampton City Council","http://opendatacommunities.org/id/metropolitan-district-council/wolverhampton","Amazon Prime FL2023995",6.66,"Bert Williams Leisure Centre","5968","-","21/01/2020"
"Wolverhampton City Council","http://opendatacommunities.org/id/metropolitan-district-council/wolverhampton","CURRYS ONLINE",570.82,"LAC Transitions Team","5732","Client Allowances","21/01/2020"
"Wolverhampton City Council","http://opendatacommunities.org/id/metropolitan-district-council/wolverhampton","WP-CENTRAL TAXIS L",271.3,"LAC Transitions Team","4121","Client Allowances","21/01/2020"
"Wolverhampton City Council","http://opendatacommunities.org/id/metropolitan-district-council/wolverhampton","WEST PARK NEWS",20,"EIP Locality 5","5411","Grant Payments","21/01/2020"
"Wolverhampton City Council","http://opendatacommunities.org/id/metropolitan-district-council/wolverhampton","SAINSBURYS (2340)",42.23,"Creative Studies Delivery Area","5411","Provisions (Not for resale)","21/01/2020"
"Wolverhampton City Council","http://opendatacommunities.org/id/metropolitan-district-council/wolverhampton","JOHNSONS",12,"Business Support Services","7210","Laundry Expenses","21/01/2020"
"Wolverhampton City Council","http://opendatacommunities.org/id/metropolitan-district-council/wolverhampton","OVO ENERGY LTD",63.91,"LAC Transitions Accommodation","4900","Client Allowances","21/01/2020"
"Wolverhampton City Council","http://opendatacommunities.org/id/metropolitan-district-council/wolverhampton","WWW.ITS.CO.UK",-192.96,"MI Friendly Cities","5251","Services - Professional Fees","21/01/2020"
"Wolverhampton City Council","http://opendatacommunities.org/id/metropolitan-district-council/wolverhampton","AMZNMktplace",32.46,"Bilston Market & Licensed Operations","5999","Equipment & Purchase","21/01/2020"
"Wolverhampton City Council","http://opendatacommunities.org/id/metropolitan-district-council/wolverhampton","LASTMINUTE.COM - HOTEL",80.01,"Independant Living Services","4722","Accommodation Costs","21/01/2020"
"Wolverhampton City Council","http://opendatacommunities.org/id/metropolitan-district-council/wolverhampton","WP-CENTRAL TAXIS L",7.1,"CIN/CP Social Work Unit - Area 7","4121","Section 17","21/01/2020"
"Wolverhampton City Council","http://opendatacommunities.org/id/metropolitan-district-council/wolverhampton","EDMUNDSON ELECTRICAL L",67.65,"Cleaning of Buildings - General","5065","Materials","21/01/2020"
"Wolverhampton City Council","http://opendatacommunities.org/id/metropolitan-district-council/wolverhampton","CUMMINGS BROTHERS LOCK",15,"Cleaning of Buildings - General","7399","Materials","21/01/2020"
"Wolverhampton City Council","http://opendatacommunities.org/id/metropolitan-district-council/wolverhampton","CARVER/WOLVERHAMPTON/L",5.97,"Cleaning of Buildings - General","5211","Materials","21/01/2020"
"Wolverhampton City Council","http://opendatacommunities.org/id/metropolitan-district-council/wolverhampton","AMZNMktplace",12.32,"SEN Sensory Inclusion","5999","Equipment & Purchase","21/01/2020"
"Wolverhampton City Council","http://opendatacommunities.org/id/metropolitan-district-council/wolverhampton","Amazon.co.uk 2V2QW58O5",24.16,"Business Support Unit","5969","Equipment & Purchase","21/01/2020"
"Wolverhampton City Council","http://opendatacommunities.org/id/metropolitan-district-council/wolverhampton","NAS",150,"Workforce Development","8398","Training Expenses","21/01/2020"
"Wolverhampton City Council","http://opendatacommunities.org/id/metropolitan-district-council/wolverhampton","EE TOP UP VESTA",10,"School Crossing Patrol","4814","Comms - Mobile Telephones","21/01/2020"
"Wolverhampton City Council","http://opendatacommunities.org/id/metropolitan-district-council/wolverhampton","ARGOS WOLVERHAMPTO",-7,"Court Team","5310","Section 17","21/01/2020"
"Wolverhampton City Council","http://opendatacommunities.org/id/metropolitan-district-council/wolverhampton","BRITANNIA",87.5,"NRPF","7011","No Recourse to Public Funds","21/01/2020"
"Wolverhampton City Council","http://opendatacommunities.org/id/metropolitan-district-council/wolverhampton","ARGOS WOLVERHAMPTO",9.99,"NRPF","5310","No Recourse to Public Funds","21/01/2020"
"Wolverhampton City Council","http://opendatacommunities.org/id/metropolitan-district-council/wolverhampton","Amazon.co.uk 5U0ZV02W5",10.82,"Northicote Farm","5969","Equipment & Purchase","21/01/2020"
"Wolverhampton City Council","http://opendatacommunities.org/id/metropolitan-district-council/wolverhampton","NAMESCO",40.99,"Corporate Parenting","4816","Marketing/Advertising","20/01/2020"
"Wolverhampton City Council","http://opendatacommunities.org/id/metropolitan-district-council/wolverhampton","Trainline",16.79,"Corporate Parenting","4112","Public Transportation","20/01/2020"
"Wolverhampton City Council","http://opendatacommunities.org/id/metropolitan-district-council/wolverhampton","Trainline",12.21,"Corporate Parenting","4112","Public Transport","20/01/2020"
"Wolverhampton City Council","http://opendatacommunities.org/id/metropolitan-district-council/wolverhampton","ARGOS LTD",18.61,"LAC Transitions Team","5310","Client Allowances","20/01/2020"
"Wolverhampton City Council","http://opendatacommunities.org/id/metropolitan-district-council/wolverhampton","NATIONAL PORTRAIT GALL",1000,"Art Gallery Shop","5970","Materials for resale","20/01/2020"
"Wolverhampton City Council","http://opendatacommunities.org/id/metropolitan-district-council/wolverhampton","NATIONAL PORTRAIT GALL",128.56,"Art Gallery Shop","5970","Materials for resale","20/01/2020"
"Wolverhampton City Council","http://opendatacommunities.org/id/metropolitan-district-council/wolverhampton","SAINSBURYS PFS (1340)",47.72,"Key to Inspiration","5541","-","20/01/2020"
"Wolverhampton City Council","http://opendatacommunities.org/id/metropolitan-district-council/wolverhampton","THE COAL AUTHORITY",82.9,"Industrial Sites","9399","Services - Professional Fees","20/01/2020"
"Wolverhampton City Council","http://opendatacommunities.org/id/metropolitan-district-council/wolverhampton","SAINSBURYS (2340)",72.49,"Bradley Resource Centre","5411","Provisions (Not for resale)","20/01/2020"
"Wolverhampton City Council","http://opendatacommunities.org/id/metropolitan-district-council/wolverhampton","NATWEST BANK",170,"NRPF","6011","No Recourse to Public Funds","20/01/2020"
"Wolverhampton City Council","http://opendatacommunities.org/id/metropolitan-district-council/wolverhampton","AMZNMktplace",13.29,"LAC Transitions Team","5999","Independant Living Allowance","20/01/2020"
"Wolverhampton City Council","http://opendatacommunities.org/id/metropolitan-district-council/wolverhampton","AMZNMktplace",50.7,"LAC Transitions Team","5999","Independant Living Allowance","20/01/2020"
"Wolverhampton City Council","http://opendatacommunities.org/id/metropolitan-district-council/wolverhampton","AMZNMktplace",20.34,"LAC Transitions Team","5999","Independant Living Allowance","20/01/2020"
"Wolverhampton City Council","http://opendatacommunities.org/id/metropolitan-district-council/wolverhampton","CITY OF WOLVERHAMPTON",38,"Court Team","9399","Section 17","20/01/2020"
"Wolverhampton City Council","http://opendatacommunities.org/id/metropolitan-district-council/wolverhampton","ROYAL MAIL CHARGES",1.5,"Regional Adoption Agency","9402","Comms - Postage","20/01/2020"
"Wolverhampton City Council","http://opendatacommunities.org/id/metropolitan-district-council/wolverhampton","PITTMAN TRAFFIC & SAFE",195,"Bert Williams Leisure Centre","5999","Equipment & Purchase","20/01/2020"
"Wolverhampton City Council","http://opendatacommunities.org/id/metropolitan-district-council/wolverhampton","MEDISAVE",79.37,"Bert Williams Leisure Centre","5047","Equipment & Purchase","20/01/2020"
"Wolverhampton City Council","http://opendatacommunities.org/id/metropolitan-district-council/wolverhampton","Central Taxis Limited",26.2,"Pupil Premium","4121","Public Transport","20/01/2020"
"Wolverhampton City Council","http://opendatacommunities.org/id/metropolitan-district-council/wolverhampton","Central Taxis Limited",26.2,"Pupil Premium","4121","Public Transport","20/01/2020"
"Wolverhampton City Council","http://opendatacommunities.org/id/metropolitan-district-council/wolverhampton","CURRYS S/S",9.98,"Youth Offending Team","5732","Computing - Consumables","20/01/2020"
"Wolverhampton City Council","http://opendatacommunities.org/id/metropolitan-district-council/wolverhampton","POST OFFICE COUNTER",70,"Looked After Team 2","9402","Comms - Postage","20/01/2020"
"Wolverhampton City Council","http://opendatacommunities.org/id/metropolitan-district-council/wolverhampton","WP-CENTRAL TAXIS L",416,"LAC Team","4121","Client Transport","20/01/2020"
"Wolverhampton City Council","http://opendatacommunities.org/id/metropolitan-district-council/wolverhampton","thetrainline.com",21.72,"LAC Transitions Team","4112","Client Allowances","20/01/2020"
"Wolverhampton City Council","http://opendatacommunities.org/id/metropolitan-district-council/wolverhampton","WP-CENTRAL TAXIS L",190,"LAC Team","4121","Financial Assistance In Exceptional Circ","20/01/2020"
"Wolverhampton City Council","http://opendatacommunities.org/id/metropolitan-district-council/wolverhampton","WP-CENTRAL TAXIS L",330,"Looked After Team 2","4121","Financial Assistance In Exceptional Circ","20/01/2020"
"Wolverhampton City Council","http://opendatacommunities.org/id/metropolitan-district-council/wolverhampton","WWW.HSS.COM",-85.01,"Business Support Services","7394","Equipment - Hire","20/01/2020"
"Wolverhampton City Council","http://opendatacommunities.org/id/metropolitan-district-council/wolverhampton","AMZNMktplace",11.98,"ICT Services","5999","Equipment & Purchase","20/01/2020"
"Wolverhampton City Council","http://opendatacommunities.org/id/metropolitan-district-council/wolverhampton","AMZNMktplace",65.57,"ICT Services","5999","Equipment & Purchase","20/01/2020"
"Wolverhampton City Council","http://opendatacommunities.org/id/metropolitan-district-council/wolverhampton","W HAMPTON1797",4.32,"LAC Transitions Accommodation","5211","Client Allowances","20/01/2020"
"Wolverhampton City Council","http://opendatacommunities.org/id/metropolitan-district-council/wolverhampton","Dunelm",153.29,"LAC Transitions Team","5712","Client Allowances","20/01/2020"
"Wolverhampton City Council","http://opendatacommunities.org/id/metropolitan-district-council/wolverhampton","CRAZYPRICEBEDS",124.99,"LAC Transitions Team","5712","Client Allowances","20/01/2020"
"Wolverhampton City Council","http://opendatacommunities.org/id/metropolitan-district-council/wolverhampton","HOME & MOTORSAVE (PERT",3.32,"Independant Living Services","5039","Computing - Purchase of Hardware","20/01/2020"
"Wolverhampton City Council","http://opendatacommunities.org/id/metropolitan-district-council/wolverhampton","Trainline",135.63,"Independant Living Services","4112","Public Transport","20/01/2020"
"Wolverhampton City Council","http://opendatacommunities.org/id/metropolitan-district-council/wolverhampton","ASDA GROCERIES ONLINE",-2.25,"Duke Street Bungalows","5411","Provisions (Not for resale)","20/01/2020"
"Wolverhampton City Council","http://opendatacommunities.org/id/metropolitan-district-council/wolverhampton","ASDA GROCERIES ONLINE",186.18,"Duke Street Bungalows","5411","Provisions (Not for resale)","20/01/2020"
"Wolverhampton City Council","http://opendatacommunities.org/id/metropolitan-district-council/wolverhampton","WIX.COM",46.57,"Technical Support","5968","Subscriptions","20/01/2020"
"Wolverhampton City Council","http://opendatacommunities.org/id/metropolitan-district-council/wolverhampton","Wix.com",36.74,"Technical Support","5817","Subscriptions","20/01/2020"
"Wolverhampton City Council","http://opendatacommunities.org/id/metropolitan-district-council/wolverhampton","WP-CENTRAL TAXIS L",90,"Looked After Team 2","4121","Client Transport","20/01/2020"
"Wolverhampton City Council","http://opendatacommunities.org/id/metropolitan-district-council/wolverhampton","WP-CENTRAL TAXIS L",112,"LAC Team","4121","Client Transport","20/01/2020"
"Wolverhampton City Council","http://opendatacommunities.org/id/metropolitan-district-council/wolverhampton","ASDA GROCERIES ONLINE",64.81,"Ernest Bold Court","5411","Provisions (Not for resale)","20/01/2020"
"Wolverhampton City Council","http://opendatacommunities.org/id/metropolitan-district-council/wolverhampton","WWW.CHARTEREDFORESTERS",195,"Workforce Development","8699","Training Expenses","20/01/2020"
"Wolverhampton City Council","http://opendatacommunities.org/id/metropolitan-district-council/wolverhampton","THEATRE SEVERN",495,"Workforce Development","7832","Training Expenses","20/01/2020"
"Wolverhampton City Council","http://opendatacommunities.org/id/metropolitan-district-council/wolverhampton","ARCO LTD",90.5,"Fleet Management","5085","Clothing / Uniforms","20/01/2020"
"Wolverhampton City Council","http://opendatacommunities.org/id/metropolitan-district-council/wolverhampton","WEST PARK NEWS",20,"EIP Locality 5","5411","Grant Payments","20/01/2020"
"Wolverhampton City Council","http://opendatacommunities.org/id/metropolitan-district-council/wolverhampton","PAYPAL  PACKNGSTORE",32.67,"Northicote Farm","5169","Materials","20/01/2020"
"Wolverhampton City Council","http://opendatacommunities.org/id/metropolitan-district-council/wolverhampton","PAYPAL  SCREWFIX",24.99,"Northicote Farm","5099","Equipment & Purchase","20/01/2020"
"Wolverhampton City Council","http://opendatacommunities.org/id/metropolitan-district-council/wolverhampton","AMZNMKTPLACE AMAZON.CO",74.75,"Creative Studies Delivery Area","5999","Services - Professional Fees","17/01/2020"
"Wolverhampton City Council","http://opendatacommunities.org/id/metropolitan-district-council/wolverhampton","SCREWFIX DIRECT",159.96,"Wolverhampton Indoor and Open Market","5200","Equipment & Purchase","17/01/2020"
"Wolverhampton City Council","http://opendatacommunities.org/id/metropolitan-district-council/wolverhampton","AMZNMktplace",3.69,"EIP Locality 1","5999","Materials","17/01/2020"
"Wolverhampton City Council","http://opendatacommunities.org/id/metropolitan-district-council/wolverhampton","WWW.ICE.ORG.UK",366.4,"Workforce Development","8699","Training Expenses","17/01/2020"
"Wolverhampton City Council","http://opendatacommunities.org/id/metropolitan-district-council/wolverhampton","PAYPAL  RTPI",102,"Workforce Development","8398","Training Expenses","17/01/2020"
"Wolverhampton City Council","http://opendatacommunities.org/id/metropolitan-district-council/wolverhampton","AMZNMktplace",58.32,"Fleet Management","5999","Materials","17/01/2020"
"Wolverhampton City Council","http://opendatacommunities.org/id/metropolitan-district-council/wolverhampton","LIFESWONDERFUL LTD",42.99,"Caretakers Community Centre","5999","Materials","17/01/2020"
"Wolverhampton City Council","http://opendatacommunities.org/id/metropolitan-district-council/wolverhampton","CARVER/WOLVERHAMPTON/L",98.65,"Direct Schools","5211","Materials","17/01/2020"
"Wolverhampton City Council","http://opendatacommunities.org/id/metropolitan-district-council/wolverhampton","REDWINGS LODGE",36.67,"Mental Health Assessment & Care Mgmt","7011","Accommodation Costs","17/01/2020"
"Wolverhampton City Council","http://opendatacommunities.org/id/metropolitan-district-council/wolverhampton","Trainline",167.58,"Service Director City Economy","4112","Public Transport","17/01/2020"
"Wolverhampton City Council","http://opendatacommunities.org/id/metropolitan-district-council/wolverhampton","AMZNMktplace",8.35,"Contemporary Gallery","5999","Materials","17/01/2020"
"Wolverhampton City Council","http://opendatacommunities.org/id/metropolitan-district-council/wolverhampton","SPAR",33.57,"Towers Outdoor Education Centre","5411","-","17/01/2020"
"Wolverhampton City Council","http://opendatacommunities.org/id/metropolitan-district-council/wolverhampton","TESCO STORES 5194",75.93,"Towers Outdoor Education Centre","5411","Provisions (Not for resale)","17/01/2020"
"Wolverhampton City Council","http://opendatacommunities.org/id/metropolitan-district-council/wolverhampton","PREMIER INN",77.99,"Private Hire Vehicles","3811","Accommodation Costs","17/01/2020"
"Wolverhampton City Council","http://opendatacommunities.org/id/metropolitan-district-council/wolverhampton","NAMESCO",38.97,"Commercial Waste Collection","4816","Marketing/Advertising","17/01/2020"
"Wolverhampton City Council","http://opendatacommunities.org/id/metropolitan-district-council/wolverhampton","AMZNMKTPLACE AMAZON.CO",16.23,"WV Active Marketing","5999","Marketing/Advertising","17/01/2020"
"Wolverhampton City Council","http://opendatacommunities.org/id/metropolitan-district-council/wolverhampton","FACEBK 5PKJ9PSA82",600,"Communications & Marketing - General","7311","Marketing/Advertising","17/01/2020"
"Wolverhampton City Council","http://opendatacommunities.org/id/metropolitan-district-council/wolverhampton","B&M RETAIL",93.01,"LAC Transitions Accommodation","5310","Client Allowances","17/01/2020"
"Wolverhampton City Council","http://opendatacommunities.org/id/metropolitan-district-council/wolverhampton","WILKO RETAIL LIMITED",2.5,"Contemporary Gallery","5399","Materials","17/01/2020"
"Wolverhampton City Council","http://opendatacommunities.org/id/metropolitan-district-council/wolverhampton","GREGGS",4.95,"Key to Inspiration","5812","-","17/01/2020"
"Wolverhampton City Council","http://opendatacommunities.org/id/metropolitan-district-council/wolverhampton","WWW.BROADBANDBUYER.CO.",597.7,"Strategic ICTS (ICT Serv Budget)","5045","Comms - Mobile Telephones","17/01/2020"
"Wolverhampton City Council","http://opendatacommunities.org/id/metropolitan-district-council/wolverhampton","LION PICTURE FRAMING S",81.54,"Technician","5999","Materials","17/01/2020"
"Wolverhampton City Council","http://opendatacommunities.org/id/metropolitan-district-council/wolverhampton","NATWEST BANK",160,"NRPF","6011","No Recourse to Public Funds","17/01/2020"
"Wolverhampton City Council","http://opendatacommunities.org/id/metropolitan-district-council/wolverhampton","CARVER/WOLVERHAMPTON/L",17.68,"Street Lighting Maintenance","5211","Materials","17/01/2020"
"Wolverhampton City Council","http://opendatacommunities.org/id/metropolitan-district-council/wolverhampton","AMZNMktplace",22.49,"LAC Transitions Team","5999","Independant Living Allowance","17/01/2020"
"Wolverhampton City Council","http://opendatacommunities.org/id/metropolitan-district-council/wolverhampton","SUBWAY",4.99,"Youth Offending Team","5814","Catering","17/01/2020"
"Wolverhampton City Council","http://opendatacommunities.org/id/metropolitan-district-council/wolverhampton","NATWEST BANK",200,"NRPF","6011","No Recourse to Public Funds","17/01/2020"
"Wolverhampton City Council","http://opendatacommunities.org/id/metropolitan-district-council/wolverhampton","AMZNMktplace",221.48,"Regional Adoption Agency","5999","Equipment - R & M","17/01/2020"
"Wolverhampton City Council","http://opendatacommunities.org/id/metropolitan-district-council/wolverhampton","Amazon.co.uk GO0QM9095",11.14,"Regional Adoption Agency","5969","Stationery","17/01/2020"
"Wolverhampton City Council","http://opendatacommunities.org/id/metropolitan-district-council/wolverhampton","POST OFFICE COUNTER",140,"Fostering Team & Allowances","9402","Signage & Labels","17/01/2020"
"Wolverhampton City Council","http://opendatacommunities.org/id/metropolitan-district-council/wolverhampton","Trainline",149.27,"Register Office","4112","Public Transport","17/01/2020"
"Wolverhampton City Council","http://opendatacommunities.org/id/metropolitan-district-council/wolverhampton","SAINSBURYS (2340)",27.65,"Mayoral Expenses","5411","Hospitality","17/01/2020"
"Wolverhampton City Council","http://opendatacommunities.org/id/metropolitan-district-council/wolverhampton","WILKO RETAIL LIMITED",15.92,"Register Office","5399","Cleaning Supplies and Materials","17/01/2020"
"Wolverhampton City Council","http://opendatacommunities.org/id/metropolitan-district-council/wolverhampton","WISEPOPS",84.42,"Communications & Marketing - General","7372","Computing - Purchase of Hardware","17/01/2020"
"Wolverhampton City Council","http://opendatacommunities.org/id/metropolitan-district-council/wolverhampton","thetrainline.com",98.9,"Director of Strategy","4112","Public Transport","17/01/2020"
"Wolverhampton City Council","http://opendatacommunities.org/id/metropolitan-district-council/wolverhampton","AMZNMktplace",74.97,"ICT Services","5999","Computing - Purchase of Hardware","17/01/2020"
"Wolverhampton City Council","http://opendatacommunities.org/id/metropolitan-district-council/wolverhampton","OCL KINGSWINFORD",174,"Waste Coll & Recycling Serv General","5261","Cleaning Supplies and Materials","16/01/2020"
"Wolverhampton City Council","http://opendatacommunities.org/id/metropolitan-district-council/wolverhampton","OCL KINGSWINFORD",174,"Waste Coll & Recycling Serv General","5261","Cleaning Supplies and Materials","16/01/2020"
"Wolverhampton City Council","http://opendatacommunities.org/id/metropolitan-district-council/wolverhampton","TVLICENSING.CO.UK",154.5,"Waste Coll & Recycling Serv General","7392","Computing & Licences","16/01/2020"
"Wolverhampton City Council","http://opendatacommunities.org/id/metropolitan-district-council/wolverhampton","Trainline",64.61,"EIP Locality 7","4112","Grant Payments","16/01/2020"
"Wolverhampton City Council","http://opendatacommunities.org/id/metropolitan-district-council/wolverhampton","LOYD 37 CHURCH STREET",100,"EIP Locality 8","6011","Grant Payments","16/01/2020"
"Wolverhampton City Council","http://opendatacommunities.org/id/metropolitan-district-council/wolverhampton","AMZNMktplace",180,"Education And Access","5999","Equipment & Purchase","16/01/2020"
"Wolverhampton City Council","http://opendatacommunities.org/id/metropolitan-district-council/wolverhampton","GREGGS PLC",2.8,"Key to Inspiration","5812","-","16/01/2020"
"Wolverhampton City Council","http://opendatacommunities.org/id/metropolitan-district-council/wolverhampton","CEX LIMITED",25,"Key to Inspiration","5065","-","16/01/2020"
"Wolverhampton City Council","http://opendatacommunities.org/id/metropolitan-district-council/wolverhampton","ASDA GROCERIES ONLINE",-11.63,"Bradley Resource Centre","5411","Provisions (Not for resale)","16/01/2020"
"Wolverhampton City Council","http://opendatacommunities.org/id/metropolitan-district-council/wolverhampton","ASDA GROCERIES ONLINE",139.28,"Bradley Resource Centre","5411","Provisions (Not for resale)","16/01/2020"
"Wolverhampton City Council","http://opendatacommunities.org/id/metropolitan-district-council/wolverhampton","WWW.THEBARCODEWAREHOUS",-59,"Strategic ICTS (ICT Serv Budget)","5722","Computing - Consumables","16/01/2020"
"Wolverhampton City Council","http://opendatacommunities.org/id/metropolitan-district-council/wolverhampton","INFO@APFITZPATRICK.CO.",41.5,"Collections","5970","Materials","16/01/2020"
"Wolverhampton City Council","http://opendatacommunities.org/id/metropolitan-district-council/wolverhampton","thetrainline.com",9.62,"Children & Young People Support Costs","4112","Public Transport","16/01/2020"
"Wolverhampton City Council","http://opendatacommunities.org/id/metropolitan-district-council/wolverhampton","AMZNMktplace",9.99,"LAC Transitions Team","5999","Independant Living Allowance","16/01/2020"
"Wolverhampton City Council","http://opendatacommunities.org/id/metropolitan-district-council/wolverhampton","AMZNMktplace",13.76,"LAC Transitions Team","5999","Independant Living Allowance","16/01/2020"
"Wolverhampton City Council","http://opendatacommunities.org/id/metropolitan-district-council/wolverhampton","AMZNMktplace",13.76,"LAC Transitions Team","5999","Independant Living Allowance","16/01/2020"
"Wolverhampton City Council","http://opendatacommunities.org/id/metropolitan-district-council/wolverhampton","SUBWAY",5.19,"Youth Offending Team","5814","Catering","16/01/2020"
"Wolverhampton City Council","http://opendatacommunities.org/id/metropolitan-district-council/wolverhampton","ROYAL BK OF SCOTLAND",40,"CIN/CP Social Work Unit - Area 6","6011","Section 17","16/01/2020"
"Wolverhampton City Council","http://opendatacommunities.org/id/metropolitan-district-council/wolverhampton","Avanti West Coast",8.2,"Regional Adoption Agency","4112","Public Transport","16/01/2020"
"Wolverhampton City Council","http://opendatacommunities.org/id/metropolitan-district-council/wolverhampton","PREMIER INN",69.17,"Aldersley Leisure Village","3811","Accommodation Costs","16/01/2020"
"Wolverhampton City Council","http://opendatacommunities.org/id/metropolitan-district-council/wolverhampton","PREMIER INN",92.92,"Aldersley Leisure Village","3811","Accommodation Costs","16/01/2020"
"Wolverhampton City Council","http://opendatacommunities.org/id/metropolitan-district-council/wolverhampton","PREMIER INN",179.58,"Bert Williams Leisure Centre","3811","Accommodation Costs","16/01/2020"
"Wolverhampton City Council","http://opendatacommunities.org/id/metropolitan-district-council/wolverhampton","thetrainline.com",118.54,"Healthy Ageing","4112","Public Transport","16/01/2020"
"Wolverhampton City Council","http://opendatacommunities.org/id/metropolitan-district-council/wolverhampton","ASDA GROCERIES ONLINE",-2.31,"Upper Pendeford Farm Childrens Home","5411","Provisions (Not for resale)","16/01/2020"
"Wolverhampton City Council","http://opendatacommunities.org/id/metropolitan-district-council/wolverhampton","ASDA GROCERIES ONLINE",5,"Upper Pendeford Farm Childrens Home","5411","Provisions (Not for resale)","16/01/2020"
"Wolverhampton City Council","http://opendatacommunities.org/id/metropolitan-district-council/wolverhampton","ASDA GROCERIES ONLINE",185.69,"Upper Pendeford Farm Childrens Home","5411","Provisions (Not for resale)","16/01/2020"
"Wolverhampton City Council","http://opendatacommunities.org/id/metropolitan-district-council/wolverhampton","WWW.SIGNATURE.ORG.UK",80,"AES Staff Development","8299","Training Expenses","16/01/2020"
"Wolverhampton City Council","http://opendatacommunities.org/id/metropolitan-district-council/wolverhampton","TFW RAIL SERVICES",8.2,"Curatorial - Cultural Learning","4112","Public Transport","16/01/2020"
"Wolverhampton City Council","http://opendatacommunities.org/id/metropolitan-district-council/wolverhampton","ASDA GROCERIES ONLINE",89.9,"Duke Street Bungalows","5411","Provisions (Not for resale)","16/01/2020"
"Wolverhampton City Council","http://opendatacommunities.org/id/metropolitan-district-council/wolverhampton","123 REG LTD",9.99,"Technical Support","5968","Subscriptions","16/01/2020"
"Wolverhampton City Council","http://opendatacommunities.org/id/metropolitan-district-council/wolverhampton","Amazon.co.uk 1495G3QA5",30.77,"Global Budgets","5969","Books","16/01/2020"
"Wolverhampton City Council","http://opendatacommunities.org/id/metropolitan-district-council/wolverhampton","AMZNMktplace",3.07,"Global Budgets","5999","Books","16/01/2020"
"Wolverhampton City Council","http://opendatacommunities.org/id/metropolitan-district-council/wolverhampton","POST OFFICE COUNTER",6.5,"Inclusion Support","9402","Comms - Postage","16/01/2020"
"Wolverhampton City Council","http://opendatacommunities.org/id/metropolitan-district-council/wolverhampton","WOLVERHAMPTON HOTEL",-35,"Court Team","7011","No Recourse to Public Funds","16/01/2020"
"Wolverhampton City Council","http://opendatacommunities.org/id/metropolitan-district-council/wolverhampton","ROYAL MAIL ONLINE SHOP",614.4,"Coroners","9402","Materials","16/01/2020"
"Wolverhampton City Council","http://opendatacommunities.org/id/metropolitan-district-council/wolverhampton","PO LOW HILL 1592",200,"EIP Locality 7","6011","Educ Trips, Holidays, Outings, Activity","16/01/2020"
"Wolverhampton City Council","http://opendatacommunities.org/id/metropolitan-district-council/wolverhampton","WWW.WMCA.CO.UK",1193,"Business Support Unit","4112","Public Transportation","16/01/2020"
"Wolverhampton City Council","http://opendatacommunities.org/id/metropolitan-district-council/wolverhampton","HM PASSPORT OFFICE",75.5,"Lac Transitions","9399","Services - Supplies & Services to users","15/01/2020"
"Wolverhampton City Council","http://opendatacommunities.org/id/metropolitan-district-council/wolverhampton","WWW.VIDEK.CO.UK",86.85,"Strategic ICTS (ICT Serv Budget)","5045","Computing - Purchase of Hardware","15/01/2020"
"Wolverhampton City Council","http://opendatacommunities.org/id/metropolitan-district-council/wolverhampton","FACEBK RPBTCSAAR2",500,"Communications & Marketing - General","7311","Marketing/Advertising","15/01/2020"
"Wolverhampton City Council","http://opendatacommunities.org/id/metropolitan-district-council/wolverhampton","WM MORRISONS STORE",0.05,"LAC Transitions Accommodation","5411","Client Allowances","15/01/2020"
"Wolverhampton City Council","http://opendatacommunities.org/id/metropolitan-district-council/wolverhampton","ASDA SUPERSTORE",57.47,"LAC Transitions Team","5411","Client Allowances","15/01/2020"
"Wolverhampton City Council","http://opendatacommunities.org/id/metropolitan-district-council/wolverhampton","CT WOLVERHAMPTON",125,"LAC Transitions Team","8398","Client Allowances","15/01/2020"
"Wolverhampton City Council","http://opendatacommunities.org/id/metropolitan-district-council/wolverhampton","TESCO STORES 5854",34.6,"Key to Inspiration","5411","-","15/01/2020"
"Wolverhampton City Council","http://opendatacommunities.org/id/metropolitan-district-council/wolverhampton","ASDA STORE 4753",14.55,"Bradley Resource Centre","5411","Provisions (Not for resale)","15/01/2020"
"Wolverhampton City Council","http://opendatacommunities.org/id/metropolitan-district-council/wolverhampton","WWW.THEBARCODEWAREHOUS",269.97,"Strategic ICTS (ICT Serv Budget)","5722","Computing - Consumables","15/01/2020"
"Wolverhampton City Council","http://opendatacommunities.org/id/metropolitan-district-council/wolverhampton","WWW.JUSTGLOVES.CO.UK",150,"Collections & Conservation","5999","Materials","15/01/2020"
"Wolverhampton City Council","http://opendatacommunities.org/id/metropolitan-district-council/wolverhampton","WM MORRISON FOOD.COM",85.92,"Discretionary Fund","5411","Materials","15/01/2020"
"Wolverhampton City Council","http://opendatacommunities.org/id/metropolitan-district-council/wolverhampton","NATIONAL EXPRESS LIMIT",37.9,"Court Team","4131","Client Transport","15/01/2020"
"Wolverhampton City Council","http://opendatacommunities.org/id/metropolitan-district-council/wolverhampton","POST OFFICE COUNTER",719,"Regional Adoption Agency","9402","Comms - Postage","15/01/2020"
"Wolverhampton City Council","http://opendatacommunities.org/id/metropolitan-district-council/wolverhampton","SPECSAVERSEVOUGB-",73.62,"Ground Maintenance East","8043","Equipment - Health and Safety","15/01/2020"
"Wolverhampton City Council","http://opendatacommunities.org/id/metropolitan-district-council/wolverhampton","AMZNMktplace",4.92,"HR Advice","5999","Equipment - Health and Safety","15/01/2020"
"Wolverhampton City Council","http://opendatacommunities.org/id/metropolitan-district-council/wolverhampton","Hotel on Booking.com",350.62,"Aldersley Leisure Village","7011","Accommodation Costs","15/01/2020"
"Wolverhampton City Council","http://opendatacommunities.org/id/metropolitan-district-council/wolverhampton","APPLE.COM/BILL",2.07,"Corporate Parenting","5735","Computing - Purchase of Software","15/01/2020"
"Wolverhampton City Council","http://opendatacommunities.org/id/metropolitan-district-council/wolverhampton","Amazon.co.uk KQ9IV4O05",16.01,"Youth Offending Team","5969","Books","15/01/2020"
"Wolverhampton City Council","http://opendatacommunities.org/id/metropolitan-district-council/wolverhampton","WICKES WOLVERHAMPTON",5.55,"Public Conveniences","5211","Materials","15/01/2020"
"Wolverhampton City Council","http://opendatacommunities.org/id/metropolitan-district-council/wolverhampton","CITY OF WOLVERHAMPTON",16,"Risk Management & Insurance","9399","Materials","15/01/2020"
"Wolverhampton City Council","http://opendatacommunities.org/id/metropolitan-district-council/wolverhampton","thetrainline.com",58.4,"Risk Management & Insurance","4112","Provisions (Resale)","15/01/2020"
"Wolverhampton City Council","http://opendatacommunities.org/id/metropolitan-district-council/wolverhampton","SAINSBURYS 2040",7.9,"Duke Street Bungalows","5411","Equipment Catering","15/01/2020"
"Wolverhampton City Council","http://opendatacommunities.org/id/metropolitan-district-council/wolverhampton","AMZNMktplace",9.13,"Global Budgets","5999","Catering","15/01/2020"
"Wolverhampton City Council","http://opendatacommunities.org/id/metropolitan-district-council/wolverhampton","AMZNMktplace",499.85,"Global Budgets","5999","Equipment & Purchase","15/01/2020"
"Wolverhampton City Council","http://opendatacommunities.org/id/metropolitan-district-council/wolverhampton","QUEENSWAY INTERIOR",572.5,"EIP Locality 4","5712","Grant Payments","15/01/2020"
"Wolverhampton City Council","http://opendatacommunities.org/id/metropolitan-district-council/wolverhampton","PAYPAL  RTPI",51,"Workforce Development","8398","Training Expenses","15/01/2020"
"Wolverhampton City Council","http://opendatacommunities.org/id/metropolitan-district-council/wolverhampton","BRITANNIA",216,"NRPF","7011","No Recourse to Public Funds","15/01/2020"
"Wolverhampton City Council","http://opendatacommunities.org/id/metropolitan-district-council/wolverhampton","BRITANNIA",73,"NRPF","7011","No Recourse to Public Funds","15/01/2020"
"Wolverhampton City Council","http://opendatacommunities.org/id/metropolitan-district-council/wolverhampton","PO LOW HILL 1592",300,"EIP Locality 7","6011","Educ Trips, Holidays, Outings, Activity","15/01/2020"
"Wolverhampton City Council","http://opendatacommunities.org/id/metropolitan-district-council/wolverhampton","ASDA GROCERIES ONLINE",-12.98,"Bradley Resource Centre","5411","Provisions (Not for resale)","14/01/2020"
"Wolverhampton City Council","http://opendatacommunities.org/id/metropolitan-district-council/wolverhampton","ASDA GROCERIES ONLINE",190.32,"Bradley Resource Centre","5411","Provisions (Not for resale)","14/01/2020"
"Wolverhampton City Council","http://opendatacommunities.org/id/metropolitan-district-council/wolverhampton","WWW.THEBARCODEWAREHOUS",67.99,"Strategic ICTS (ICT Serv Budget)","5722","Computing - Consumables","14/01/2020"
"Wolverhampton City Council","http://opendatacommunities.org/id/metropolitan-district-council/wolverhampton","ARGOS LTD",28.28,"LAC Transitions Team","5310","Independant Living Allowance","14/01/2020"
"Wolverhampton City Council","http://opendatacommunities.org/id/metropolitan-district-council/wolverhampton","ARGOS LTD",86.62,"LAC Transitions Team","5310","Independant Living Allowance","14/01/2020"
"Wolverhampton City Council","http://opendatacommunities.org/id/metropolitan-district-council/wolverhampton","ARGOS LTD",328.89,"LAC Transitions Team","5310","Independant Living Allowance","14/01/2020"
"Wolverhampton City Council","http://opendatacommunities.org/id/metropolitan-district-council/wolverhampton","ARGOS LTD",403.27,"LAC Transitions Team","5310","Independant Living Allowance","14/01/2020"
"Wolverhampton City Council","http://opendatacommunities.org/id/metropolitan-district-council/wolverhampton","CURRYS ONLINE",165.83,"LAC Transitions Team","5732","Independant Living Allowance","14/01/2020"
"Wolverhampton City Council","http://opendatacommunities.org/id/metropolitan-district-council/wolverhampton","HOME BARGAINS WOLVERHA",24.79,"LAC Transitions Team","5251","Client Allowances","14/01/2020"
"Wolverhampton City Council","http://opendatacommunities.org/id/metropolitan-district-council/wolverhampton","A.B.C. COUNTDOWN CARS",28,"CAT","4121","Client Transport","14/01/2020"
"Wolverhampton City Council","http://opendatacommunities.org/id/metropolitan-district-council/wolverhampton","thetrainline.com",7.38,"Safeguarding Admin Resource","4112","Public Transportation","14/01/2020"
"Wolverhampton City Council","http://opendatacommunities.org/id/metropolitan-district-council/wolverhampton","Trainline",194.19,"Fostering Team","4112","Public Transport","14/01/2020"
"Wolverhampton City Council","http://opendatacommunities.org/id/metropolitan-district-council/wolverhampton","AMZNMktplace",128,"Bert Williams Leisure Centre","5999","-","14/01/2020"
"Wolverhampton City Council","http://opendatacommunities.org/id/metropolitan-district-council/wolverhampton","AMZNMktplace",28.33,"Power2 Team","5999","Equipment & Purchase","14/01/2020"
"Wolverhampton City Council","http://opendatacommunities.org/id/metropolitan-district-council/wolverhampton","CITY OF WOLVERHAMPTON",17,"Looked After Team 2","9399","Financial Assistance In Exceptional Circ","14/01/2020"
"Wolverhampton City Council","http://opendatacommunities.org/id/metropolitan-district-council/wolverhampton","Amazon.co.uk XJ5S52CK5",70.47,"Language Studies Delivery Area","5969","Books","14/01/2020"
"Wolverhampton City Council","http://opendatacommunities.org/id/metropolitan-district-council/wolverhampton","thetrainline.com",96.76,"Talk English","4112","Public Transportation","14/01/2020"
"Wolverhampton City Council","http://opendatacommunities.org/id/metropolitan-district-council/wolverhampton","WICKES WOLVERHAMPTON",62.5,"Duke Street Bungalows","5211","Equipment - R & M","14/01/2020"
"Wolverhampton City Council","http://opendatacommunities.org/id/metropolitan-district-council/wolverhampton","ASDA GROCERIES ONLINE",68.15,"Ernest Bold Court","5411","Provisions (Not for resale)","14/01/2020"
"Wolverhampton City Council","http://opendatacommunities.org/id/metropolitan-district-council/wolverhampton","Amazon.co.uk OH3WC14P5",99.66,"Inclusion Support","5969","Books","14/01/2020"
"Wolverhampton City Council","http://opendatacommunities.org/id/metropolitan-district-council/wolverhampton","thetrainline.com",150.08,"Capital Programme Team","4112","Public Transportation","14/01/2020"
"Wolverhampton City Council","http://opendatacommunities.org/id/metropolitan-district-council/wolverhampton","HOTELSCOM9005045958990",32.67,"MASH","4722","Section 17","14/01/2020"
"Wolverhampton City Council","http://opendatacommunities.org/id/metropolitan-district-council/wolverhampton","ARGOS LTD",263.9,"Court Team","5310","-","14/01/2020"
"Wolverhampton City Council","http://opendatacommunities.org/id/metropolitan-district-council/wolverhampton","PO LOW HILL 1592",300,"EIP Locality 7","6011","Educ Trips, Holidays, Outings, Activity","14/01/2020"
"Wolverhampton City Council","http://opendatacommunities.org/id/metropolitan-district-council/wolverhampton","AMZNMktplace",6.66,"Northicote Farm","5999","Equipment & Purchase","14/01/2020"
"Wolverhampton City Council","http://opendatacommunities.org/id/metropolitan-district-council/wolverhampton","AMZNMktplace",24.48,"Northicote Farm","5999","Equipment & Purchase","14/01/2020"
"Wolverhampton City Council","http://opendatacommunities.org/id/metropolitan-district-council/wolverhampton","WOLVERHAMPTON T/O",46,"Headstart Phase 3","4112","Public Transportation","14/01/2020"
"Wolverhampton City Council","http://opendatacommunities.org/id/metropolitan-district-council/wolverhampton","AMZNMktplace",44.97,"Strategic ICTS (ICT Serv Budget)","5999","Computing - Consumables","14/01/2020"
"Wolverhampton City Council","http://opendatacommunities.org/id/metropolitan-district-council/wolverhampton","XL DISPLAYS LTD",430.12,"WV Active Marketing","5099","Marketing/Advertising","14/01/2020"
"Wolverhampton City Council","http://opendatacommunities.org/id/metropolitan-district-council/wolverhampton","WILKO RETAIL LIMITED",3.12,"Contemporary Gallery","5399","Materials","14/01/2020"
"Wolverhampton City Council","http://opendatacommunities.org/id/metropolitan-district-council/wolverhampton","AMZNMKTPLACE AMAZON.CO",116.71,"Key to Inspiration","5999","Educ Trips, Holidays, Outings, Activity","14/01/2020"
"Wolverhampton City Council","http://opendatacommunities.org/id/metropolitan-district-council/wolverhampton","WWW.STUDIOSPARES.COM",32.07,"ALV - Darts & Comedy","5999","-","14/01/2020"
"Wolverhampton City Council","http://opendatacommunities.org/id/metropolitan-district-council/wolverhampton","AMZNMktplace",9.79,"Global Budgets","5999","Catering","13/01/2020"
"Wolverhampton City Council","http://opendatacommunities.org/id/metropolitan-district-council/wolverhampton","WICKES WOLVERHAMPTON",5.41,"Community Enablement","5211","Materials","13/01/2020"
"Wolverhampton City Council","http://opendatacommunities.org/id/metropolitan-district-council/wolverhampton","Avanti West Coast",18,"Looked After Team 2","4112","Public Transport","13/01/2020"
"Wolverhampton City Council","http://opendatacommunities.org/id/metropolitan-district-council/wolverhampton","ASDA GROCERIES ONLINE",61.92,"Ernest Bold Court","5411","Provisions (Not for resale)","13/01/2020"
"Wolverhampton City Council","http://opendatacommunities.org/id/metropolitan-district-council/wolverhampton","ARGOS LTD",232.5,"LAC Transitions Team","5310","Client Allowances","13/01/2020"
"Wolverhampton City Council","http://opendatacommunities.org/id/metropolitan-district-council/wolverhampton","SAINSBURYS 2040",20.83,"Duke Street Bungalows","5411","Equipment Catering","13/01/2020"
"Wolverhampton City Council","http://opendatacommunities.org/id/metropolitan-district-council/wolverhampton","CHARTERED INSTITUTE OF",130,"Apprenticeships","8244","Subscriptions","13/01/2020"
"Wolverhampton City Council","http://opendatacommunities.org/id/metropolitan-district-council/wolverhampton","BRE GROUP",195,"Central Training","7372","Training Expenses","13/01/2020"
"Wolverhampton City Council","http://opendatacommunities.org/id/metropolitan-district-council/wolverhampton","AMZNMktplace",19.96,"Newly Qualified Social Workers","5999","Computing - Consumables","13/01/2020"
"Wolverhampton City Council","http://opendatacommunities.org/id/metropolitan-district-council/wolverhampton","AMZNMktplace",13.26,"SEN Early Years Team","5999","Equipment & Purchase","13/01/2020"
"Wolverhampton City Council","http://opendatacommunities.org/id/metropolitan-district-council/wolverhampton","AMZNMktplace",39.98,"SEN Early Years Team","5999","Equipment & Purchase","13/01/2020"
"Wolverhampton City Council","http://opendatacommunities.org/id/metropolitan-district-council/wolverhampton","Amazon.co.uk OS91B8T25",16.93,"Planning","5969","Books","13/01/2020"
"Wolverhampton City Council","http://opendatacommunities.org/id/metropolitan-district-council/wolverhampton","thetrainline.com",54.44,"Service Director City Environment","4112","Public Transport","13/01/2020"
"Wolverhampton City Council","http://opendatacommunities.org/id/metropolitan-district-council/wolverhampton","JEWELLERY QTR SST",8,"Phoebe Cummings - ACE NPO WAG","4112","Public Transportation","13/01/2020"
"Wolverhampton City Council","http://opendatacommunities.org/id/metropolitan-district-council/wolverhampton","AMZNMKTPLACE AMAZON.CO",9.87,"Strategic ICTS (ICT Serv Budget)","5999","Computing - Consumables","13/01/2020"
"Wolverhampton City Council","http://opendatacommunities.org/id/metropolitan-district-council/wolverhampton","WWW.PHS.CO.UK",104.83,"Towers Outdoor Education Centre","7399","-","13/01/2020"
"Wolverhampton City Council","http://opendatacommunities.org/id/metropolitan-district-council/wolverhampton","PREMIER INN",181.5,"Private Hire Vehicles","3811","Accommodation Costs","13/01/2020"
"Wolverhampton City Council","http://opendatacommunities.org/id/metropolitan-district-council/wolverhampton","NAMESCO",13.98,"SWP � Cohesion Activities","4816","Marketing/Advertising","13/01/2020"
"Wolverhampton City Council","http://opendatacommunities.org/id/metropolitan-district-council/wolverhampton","AMZNMktplace",112.98,"Communications & Marketing - General","5999","Marketing/Advertising","13/01/2020"
"Wolverhampton City Council","http://opendatacommunities.org/id/metropolitan-district-council/wolverhampton","ARGOS LTD",68.44,"LAC Transitions Accommodation","5310","-","13/01/2020"
"Wolverhampton City Council","http://opendatacommunities.org/id/metropolitan-district-council/wolverhampton","B&M RETAIL",41.66,"LAC Transitions Team","5310","Client Allowances","13/01/2020"
"Wolverhampton City Council","http://opendatacommunities.org/id/metropolitan-district-council/wolverhampton","MUSEUMS ASCTN",125,"Research & Development","5971","Services - Fees and Charges","13/01/2020"
"Wolverhampton City Council","http://opendatacommunities.org/id/metropolitan-district-council/wolverhampton","Amazon Prime AI7W02XM5",6.66,"Key to Inspiration","5968","-","13/01/2020"
"Wolverhampton City Council","http://opendatacommunities.org/id/metropolitan-district-council/wolverhampton","ASDA GROCERIES ONLINE",-0.29,"Key to Inspiration","5411","Subsistence","13/01/2020"
"Wolverhampton City Council","http://opendatacommunities.org/id/metropolitan-district-council/wolverhampton","ARGOS WOLVERHAMPTO",20.98,"Key to Inspiration","5310","Fixtures and Fittings - Purchases","13/01/2020"
"Wolverhampton City Council","http://opendatacommunities.org/id/metropolitan-district-council/wolverhampton","SP   CULTURE SCOOTER S",161.26,"Key to Inspiration","5734","Educ Trips, Holidays, Outings, Activity","13/01/2020"
"Wolverhampton City Council","http://opendatacommunities.org/id/metropolitan-district-council/wolverhampton","ASDA GROCERIES ONLINE",216.81,"Key to Inspiration","5411","Subsistence","13/01/2020"
"Wolverhampton City Council","http://opendatacommunities.org/id/metropolitan-district-council/wolverhampton","J D SPORTS PLC",20,"Key to Inspiration","5941","Clothing / Uniforms","13/01/2020"
"Wolverhampton City Council","http://opendatacommunities.org/id/metropolitan-district-council/wolverhampton","SAINSBURYS (2340)",6.3,"Key to Inspiration","5411","Subsistence","13/01/2020"
"Wolverhampton City Council","http://opendatacommunities.org/id/metropolitan-district-council/wolverhampton","MCDONALDS",28.24,"Key to Inspiration","5814","Subsistence","13/01/2020"
"Wolverhampton City Council","http://opendatacommunities.org/id/metropolitan-district-council/wolverhampton","MCDONALDS",10.08,"Key to Inspiration","5814","Subsistence","13/01/2020"
"Wolverhampton City Council","http://opendatacommunities.org/id/metropolitan-district-council/wolverhampton","POSTURITE LTD",222.89,"Strategic Asset Management Team","7399","Equipment - R & M","13/01/2020"
"Wolverhampton City Council","http://opendatacommunities.org/id/metropolitan-district-council/wolverhampton","ASDA GROCERIES ONLINE",-7.66,"Bradley Resource Centre","5411","Provisions (Not for resale)","13/01/2020"
"Wolverhampton City Council","http://opendatacommunities.org/id/metropolitan-district-council/wolverhampton","ASDA GROCERIES ONLINE",108.77,"Bradley Resource Centre","5411","Provisions (Not for resale)","13/01/2020"
"Wolverhampton City Council","http://opendatacommunities.org/id/metropolitan-district-council/wolverhampton","ASDA STORE 4753",2,"Bradley Resource Centre","5411","Provisions (Not for resale)","13/01/2020"
"Wolverhampton City Council","http://opendatacommunities.org/id/metropolitan-district-council/wolverhampton","SHEETMUSICPLUS.COM",42.36,"Music Support Team","5733","Books","13/01/2020"
"Wolverhampton City Council","http://opendatacommunities.org/id/metropolitan-district-council/wolverhampton","SHEETMUSICPLUS.COM",23.09,"Music Support Team","5733","Books","13/01/2020"
"Wolverhampton City Council","http://opendatacommunities.org/id/metropolitan-district-council/wolverhampton","NATWEST BANK",250,"NRPF","6011","No Recourse to Public Funds","13/01/2020"
"Wolverhampton City Council","http://opendatacommunities.org/id/metropolitan-district-council/wolverhampton","SAINSBURYS (2340)",3.5,"Discretionary Fund","5411","Materials","13/01/2020"
"Wolverhampton City Council","http://opendatacommunities.org/id/metropolitan-district-council/wolverhampton","CardtronicsUK",150,"Key to Inspiration","6011","Materials","13/01/2020"
"Wolverhampton City Council","http://opendatacommunities.org/id/metropolitan-district-council/wolverhampton","AMZNMKTPLACE AMAZON.CO",52.97,"Key to Inspiration","5999","Equipment & Purchase","13/01/2020"
"Wolverhampton City Council","http://opendatacommunities.org/id/metropolitan-district-council/wolverhampton","WWW.UCAS.COM",20.83,"LAC Transitions Team","8220","Client Allowances","13/01/2020"
"Wolverhampton City Council","http://opendatacommunities.org/id/metropolitan-district-council/wolverhampton","PREMIER INN",88.75,"Regional Adoption Agency","3811","Accommodation Costs","13/01/2020"
"Wolverhampton City Council","http://opendatacommunities.org/id/metropolitan-district-council/wolverhampton","Avanti West Coast",106.2,"Regional Adoption Agency","4112","Public Transport","13/01/2020"
"Wolverhampton City Council","http://opendatacommunities.org/id/metropolitan-district-council/wolverhampton","AMZNMKTPLACE AMAZON.CO",20.63,"Regional Adoption Agency","5999","Stationery","13/01/2020"
"Wolverhampton City Council","http://opendatacommunities.org/id/metropolitan-district-council/wolverhampton","CURRYS ONLINE",136.63,"EIP Locality 4","5732","Services - Professional Fees","13/01/2020"
"Wolverhampton City Council","http://opendatacommunities.org/id/metropolitan-district-council/wolverhampton","WWW.STA.CO.UK",49,"Aldersley Leisure Village","7999","Services - General Licences","13/01/2020"
"Wolverhampton City Council","http://opendatacommunities.org/id/metropolitan-district-council/wolverhampton","RESPONSTER PLUS PLAN",15,"Communications & Marketing - General","5734","Computing - Purchase of Hardware","13/01/2020"
"Wolverhampton City Council","http://opendatacommunities.org/id/metropolitan-district-council/wolverhampton","WWW.IKEA.COM",87.04,"Power2 Team","5712","Direct Work With Children","13/01/2020"
"Wolverhampton City Council","http://opendatacommunities.org/id/metropolitan-district-council/wolverhampton","POST OFFICE COUNTER",6.6,"LAC Team","9402","Comms - Postage","13/01/2020"
"Wolverhampton City Council","http://opendatacommunities.org/id/metropolitan-district-council/wolverhampton","PREMIER INN",148,"LAC Team","3811","Financial Assistance In Exceptional Circ","13/01/2020"
"Wolverhampton City Council","http://opendatacommunities.org/id/metropolitan-district-council/wolverhampton","COMBINED COURT",170,"Looked After Team 2","9222","Financial Assistance In Exceptional Circ","13/01/2020"
"Wolverhampton City Council","http://opendatacommunities.org/id/metropolitan-district-council/wolverhampton","COMBINED COURT",170,"LAC Team","9222","Financial Assistance In Exceptional Circ","13/01/2020"
"Wolverhampton City Council","http://opendatacommunities.org/id/metropolitan-district-council/wolverhampton","WWW.HSS.COM",85.01,"Old Hall Street Main","7394","Equipment - Hire","13/01/2020"
"Wolverhampton City Council","http://opendatacommunities.org/id/metropolitan-district-council/wolverhampton","WWW.HSS.COM",140.84,"Old Hall Street Main","7394","R&M - Departmental response (Internal)","13/01/2020"
"Wolverhampton City Council","http://opendatacommunities.org/id/metropolitan-district-council/wolverhampton","SAINSBURYS (2340)",32.85,"Creative Studies Delivery Area","5411","Provisions (Not for resale)","13/01/2020"
"Wolverhampton City Council","http://opendatacommunities.org/id/metropolitan-district-council/wolverhampton","WOLVERHAMPTON HOTEL",-336,"MASH","7011","Section 17","13/01/2020"
"Wolverhampton City Council","http://opendatacommunities.org/id/metropolitan-district-council/wolverhampton","HOME BARGAINS WOLVERHA",38.15,"LAC Transitions Accommodation","5251","Client Allowances","13/01/2020"
"Wolverhampton City Council","http://opendatacommunities.org/id/metropolitan-district-council/wolverhampton","HUGHES",416.67,"LAC Transitions Accommodation","5732","Client Transport","13/01/2020"
"Wolverhampton City Council","http://opendatacommunities.org/id/metropolitan-district-council/wolverhampton","HUGHES",293,"LAC Transitions Accommodation","5732","Client Allowances","13/01/2020"
"Wolverhampton City Council","http://opendatacommunities.org/id/metropolitan-district-council/wolverhampton","W HAMPTON1797",42.78,"Cleaning of Buildings - General","5211","Materials","13/01/2020"
"Wolverhampton City Council","http://opendatacommunities.org/id/metropolitan-district-council/wolverhampton","SAINSBURYS 2198",4.17,"Vulnerable Young Persons Team","5411","Stationery","13/01/2020"
"Wolverhampton City Council","http://opendatacommunities.org/id/metropolitan-district-council/wolverhampton","123 REG LTD",9.99,"Technical Support","5968","Subscriptions","13/01/2020"
"Wolverhampton City Council","http://opendatacommunities.org/id/metropolitan-district-council/wolverhampton","123 REG LTD",9.99,"Technical Support","4816","Subscriptions","13/01/2020"
"Wolverhampton City Council","http://opendatacommunities.org/id/metropolitan-district-council/wolverhampton","Amazon.co.uk EE0XW98B5",12.97,"Global Budgets","5969","Books","13/01/2020"
"Wolverhampton City Council","http://opendatacommunities.org/id/metropolitan-district-council/wolverhampton","AMZNMktplace",166.62,"Global Budgets","5999","Equipment & Purchase","13/01/2020"
"Wolverhampton City Council","http://opendatacommunities.org/id/metropolitan-district-council/wolverhampton","CLEANSMART LIMITED",1422,"MI Friendly Cities","7349","Equipment - Health and Safety","10/01/2020"
"Wolverhampton City Council","http://opendatacommunities.org/id/metropolitan-district-council/wolverhampton","COMMS EXPRESS LTD",122,"Strategic ICTS (ICT Serv Budget)","5732","Computing - Consumables","10/01/2020"
"Wolverhampton City Council","http://opendatacommunities.org/id/metropolitan-district-council/wolverhampton","CARD FACTORY",2.05,"Key to Inspiration","5947","Direct Work With Children","10/01/2020"
"Wolverhampton City Council","http://opendatacommunities.org/id/metropolitan-district-council/wolverhampton","SAINSBURYS (2340)",27.55,"Key to Inspiration","5411","Subsistence","10/01/2020"
"Wolverhampton City Council","http://opendatacommunities.org/id/metropolitan-district-council/wolverhampton","SAINSBURYS (2340)",92.48,"Key to Inspiration","5411","Fixtures and Fittings - Purchases","10/01/2020"
"Wolverhampton City Council","http://opendatacommunities.org/id/metropolitan-district-council/wolverhampton","ASDA GROCERIES ONLINE",-0.44,"Bradley Resource Centre","5411","Provisions (Not for resale)","10/01/2020"
"Wolverhampton City Council","http://opendatacommunities.org/id/metropolitan-district-council/wolverhampton","ASDA GROCERIES ONLINE",158.74,"Bradley Resource Centre","5411","Provisions (Not for resale)","10/01/2020"
"Wolverhampton City Council","http://opendatacommunities.org/id/metropolitan-district-council/wolverhampton","NATWEST BANK",250,"NRPF","6011","No Recourse to Public Funds","10/01/2020"
"Wolverhampton City Council","http://opendatacommunities.org/id/metropolitan-district-council/wolverhampton","CARESHOP",42.85,"Ernest Bold Court","5999","Cleaning Supplies and Materials","10/01/2020"
"Wolverhampton City Council","http://opendatacommunities.org/id/metropolitan-district-council/wolverhampton","HARVEYS ENTERPRISES",25,"Hospital Team","5712","Materials","10/01/2020"
"Wolverhampton City Council","http://opendatacommunities.org/id/metropolitan-district-council/wolverhampton","thetrainline.com",84.55,"Fostering Team & Allowances","4112","Public Transport","10/01/2020"
"Wolverhampton City Council","http://opendatacommunities.org/id/metropolitan-district-council/wolverhampton","SAINSBURYS PFS (1340)",22.69,"Mayoral Expenses","5541","Petrol","10/01/2020"
"Wolverhampton City Council","http://opendatacommunities.org/id/metropolitan-district-council/wolverhampton","SAINSBURYS SACAT (2340",3.75,"Mayoral Expenses","5411","Hospitality","10/01/2020"
"Wolverhampton City Council","http://opendatacommunities.org/id/metropolitan-district-council/wolverhampton","WP JOB MANAGER",-25.91,"Communications & Marketing - General","7372","Computing - Purchase of Hardware","10/01/2020"
"Wolverhampton City Council","http://opendatacommunities.org/id/metropolitan-district-council/wolverhampton","EB  NATIONAL FOOD AND",20,"Starting and Developing Well(0-24 group)","7399","Training Expenses","10/01/2020"
"Wolverhampton City Council","http://opendatacommunities.org/id/metropolitan-district-council/wolverhampton","GEN REGISTER OFFICE",14,"LAC Team","9399","Services - Fees and Charges","10/01/2020"
"Wolverhampton City Council","http://opendatacommunities.org/id/metropolitan-district-council/wolverhampton","GEN REGISTER OFFICE",75,"LAC Team","9399","Services - Fees and Charges","10/01/2020"
"Wolverhampton City Council","http://opendatacommunities.org/id/metropolitan-district-council/wolverhampton","Avanti West Coast",11.5,"Looked After Team 2","4112","Public Transport","10/01/2020"
"Wolverhampton City Council","http://opendatacommunities.org/id/metropolitan-district-council/wolverhampton","thetrainline.com",-96.4,"Service Director Adults","4112","Public Transport","10/01/2020"
"Wolverhampton City Council","http://opendatacommunities.org/id/metropolitan-district-council/wolverhampton","FS  nextendweb.com",27.6,"ICT Services","5817","Computing - Purchase of Software","10/01/2020"
"Wolverhampton City Council","http://opendatacommunities.org/id/metropolitan-district-council/wolverhampton","IZ  D & K TRADING (MID",84.8,"Bilston Market & Licensed Operations","5999","Equipment & Purchase","10/01/2020"
"Wolverhampton City Council","http://opendatacommunities.org/id/metropolitan-district-council/wolverhampton","YOUNG'S SHOE REPAIRS L",45.5,"Wolverhampton Indoor and Open Market","7251","Equipment & Purchase","10/01/2020"
"Wolverhampton City Council","http://opendatacommunities.org/id/metropolitan-district-council/wolverhampton","HYDRAFIT COVENTRY LTD",93.68,"Wolverhampton Indoor and Open Market","5072","Equipment & Purchase","10/01/2020"
"Wolverhampton City Council","http://opendatacommunities.org/id/metropolitan-district-council/wolverhampton","Amazon.co.uk MR1CX9CG5",7.32,"Older People Provider Management","5969","Equipment & Purchase","10/01/2020"
"Wolverhampton City Council","http://opendatacommunities.org/id/metropolitan-district-council/wolverhampton","Amazon.co.uk 7J1935G65",25.25,"Older People Provider Management","5969","Equipment & Purchase","10/01/2020"
"Wolverhampton City Council","http://opendatacommunities.org/id/metropolitan-district-council/wolverhampton","AMZNMKTPLACE AMAZON.CO",33.32,"Learning Disabilities Management","5999","Services - Consultants","10/01/2020"
"Wolverhampton City Council","http://opendatacommunities.org/id/metropolitan-district-council/wolverhampton","AMZNMKTPLACE AMAZON.CO",33.32,"Learning Disabilities Management","5999","Services - Consultants","10/01/2020"
"Wolverhampton City Council","http://opendatacommunities.org/id/metropolitan-district-council/wolverhampton","POST OFFICE COUNTER",8.7,"LAC Team","9402","Services - Fees and Charges","10/01/2020"
"Wolverhampton City Council","http://opendatacommunities.org/id/metropolitan-district-council/wolverhampton","POST OFFICE COUNTER",11,"LAC Team","9402","Services - Fees and Charges","10/01/2020"
"Wolverhampton City Council","http://opendatacommunities.org/id/metropolitan-district-council/wolverhampton","SPLASHTOP.COM",102.27,"Technical Support","5734","Subscriptions","10/01/2020"
"Wolverhampton City Council","http://opendatacommunities.org/id/metropolitan-district-council/wolverhampton","CITY OF WOLVERHAMPTON",38,"Looked After Team 2","9399","Financial Assistance In Exceptional Circ","10/01/2020"
"Wolverhampton City Council","http://opendatacommunities.org/id/metropolitan-district-council/wolverhampton","AMZNMktplace",27.67,"Learning Disabilities Management","5999","Services - Consultants","10/01/2020"
"Wolverhampton City Council","http://opendatacommunities.org/id/metropolitan-district-council/wolverhampton","AMZNMKTPLACE AMAZON.CO",366.66,"Learning Disabilities Management","5999","Services - Consultants","10/01/2020"
"Wolverhampton City Council","http://opendatacommunities.org/id/metropolitan-district-council/wolverhampton","AMZNMktplace",24.07,"Northicote Farm","5999","Equipment & Purchase","10/01/2020"
"Wolverhampton City Council","http://opendatacommunities.org/id/metropolitan-district-council/wolverhampton","SETON",78.37,"Northicote Farm","5099","Equipment & Purchase","10/01/2020"
"Wolverhampton City Council","http://opendatacommunities.org/id/metropolitan-district-council/wolverhampton","AMZNMktplace",8.62,"Northicote Farm","5999","Equipment & Purchase","10/01/2020"
"Wolverhampton City Council","http://opendatacommunities.org/id/metropolitan-district-council/wolverhampton","AMZNMktplace",12.29,"Northicote Farm","5999","Equipment & Purchase","10/01/2020"
"Wolverhampton City Council","http://opendatacommunities.org/id/metropolitan-district-council/wolverhampton","IDEAL SHOPPING DIRECT",159.88,"MI Friendly Cities","7829","Equipment - R & M","09/01/2020"
"Wolverhampton City Council","http://opendatacommunities.org/id/metropolitan-district-council/wolverhampton","SAFETYSUPPL",668.85,"MI Friendly Cities","5311","Equipment - Health and Safety","09/01/2020"
"Wolverhampton City Council","http://opendatacommunities.org/id/metropolitan-district-council/wolverhampton","000002200500000",250,"Mental Health Assessment & Care Mgmt","6011","Financial Assistance In Exceptional Circ","09/01/2020"
"Wolverhampton City Council","http://opendatacommunities.org/id/metropolitan-district-council/wolverhampton","SCREWFIX DIRECT",227.96,"Car Parks Operational Staff","5200","Clothing / Uniforms","09/01/2020"
"Wolverhampton City Council","http://opendatacommunities.org/id/metropolitan-district-council/wolverhampton","WWW.THEWORKS.CO.UK",30.48,"WV Active Marketing","5310","Marketing/Advertising","09/01/2020"
"Wolverhampton City Council","http://opendatacommunities.org/id/metropolitan-district-council/wolverhampton","CLONE MEDIA TECHNOLOGY",2080,"Communications & Marketing - General","7338","Marketing/Advertising","09/01/2020"
"Wolverhampton City Council","http://opendatacommunities.org/id/metropolitan-district-council/wolverhampton","ARGOS LTD",8,"EIP Locality 8","5310","Grant Payments","09/01/2020"
"Wolverhampton City Council","http://opendatacommunities.org/id/metropolitan-district-council/wolverhampton","ARGOS LTD",305.68,"EIP Locality 8","5310","Grant Payments","09/01/2020"
"Wolverhampton City Council","http://opendatacommunities.org/id/metropolitan-district-council/wolverhampton","LOYD 37 CHURCH STREET",100,"EIP Locality 8","6011","Grant Payments","09/01/2020"
"Wolverhampton City Council","http://opendatacommunities.org/id/metropolitan-district-council/wolverhampton","MCDONALDS",10.27,"Corporate Parenting","5814","Direct Work With Children","09/01/2020"
"Wolverhampton City Council","http://opendatacommunities.org/id/metropolitan-district-council/wolverhampton","HASHTAG  FALAFIL",5,"Corporate Parenting","5814","Direct Work With Children","09/01/2020"
"Wolverhampton City Council","http://opendatacommunities.org/id/metropolitan-district-council/wolverhampton","ASDA SUPERSTORE",40.5,"Key to Inspiration","5411","Fixtures and Fittings - Purchases","09/01/2020"
"Wolverhampton City Council","http://opendatacommunities.org/id/metropolitan-district-council/wolverhampton","CARESHOP",19.7,"Ernest Bold Court","5999","Materials","09/01/2020"
"Wolverhampton City Council","http://opendatacommunities.org/id/metropolitan-district-council/wolverhampton","CARVER/WOLVERHAMPTON/L",16.87,"Street Lighting Maintenance","5211","Materials","09/01/2020"
"Wolverhampton City Council","http://opendatacommunities.org/id/metropolitan-district-council/wolverhampton","IKEA LTD 142 BIRMINGHA",111.67,"LAC Transitions Team","5712","Client Allowances","09/01/2020"
"Wolverhampton City Council","http://opendatacommunities.org/id/metropolitan-district-council/wolverhampton","IKEA LTD 142 BIRMINGHA",24.17,"LAC Transitions Team","5712","Client Allowances","09/01/2020"
"Wolverhampton City Council","http://opendatacommunities.org/id/metropolitan-district-council/wolverhampton","ASDA SUPERSTORE",3.67,"LAC Transitions Team","5411","Client Allowances","09/01/2020"
"Wolverhampton City Council","http://opendatacommunities.org/id/metropolitan-district-council/wolverhampton","Avanti West Coast",107.6,"Regional Adoption Agency","4112","Public Transport","09/01/2020"
"Wolverhampton City Council","http://opendatacommunities.org/id/metropolitan-district-council/wolverhampton","AMZNMKTPLACE AMAZON.CO",7.08,"Regional Adoption Agency","5999","-","09/01/2020"
"Wolverhampton City Council","http://opendatacommunities.org/id/metropolitan-district-council/wolverhampton","AMZNMKTPLACE AMAZON.CO",6.99,"Regional Adoption Agency","5999","Stationery","09/01/2020"
"Wolverhampton City Council","http://opendatacommunities.org/id/metropolitan-district-council/wolverhampton","AMZNMKTPLACE AMAZON.CO",3.96,"Regional Adoption Agency","5999","Stationery","09/01/2020"
"Wolverhampton City Council","http://opendatacommunities.org/id/metropolitan-district-council/wolverhampton","PREMIER INN",72.5,"Fostering Team","3811","Accommodation Costs","09/01/2020"
"Wolverhampton City Council","http://opendatacommunities.org/id/metropolitan-district-council/wolverhampton","EB  NATIONAL FOOD AND",20,"Healthy Life Expectancy","7399","Training Expenses","09/01/2020"
"Wolverhampton City Council","http://opendatacommunities.org/id/metropolitan-district-council/wolverhampton","APPLE.COM/BILL",0.79,"Managing Director","5735","Computing - Purchase of Software","09/01/2020"
"Wolverhampton City Council","http://opendatacommunities.org/id/metropolitan-district-council/wolverhampton","Trainline",19.99,"Legal Services","4112","Public Transportation","09/01/2020"
"Wolverhampton City Council","http://opendatacommunities.org/id/metropolitan-district-council/wolverhampton","AMZNMktplace",20.79,"Creative Studies Delivery Area","5999","Equipment & Purchase","09/01/2020"
"Wolverhampton City Council","http://opendatacommunities.org/id/metropolitan-district-council/wolverhampton","RAYTON ELECT WSALERS L",34.66,"Cleaning of Buildings - General","5999","Materials","09/01/2020"
"Wolverhampton City Council","http://opendatacommunities.org/id/metropolitan-district-council/wolverhampton","EB  COUNTY LINES AMP C",255.7,"Central Training","7399","Training Expenses","09/01/2020"
"Wolverhampton City Council","http://opendatacommunities.org/id/metropolitan-district-council/wolverhampton","WATERSTONES.COM",170,"Mental Health Assessment & Care Mgmt","5942","Books","09/01/2020"
"Wolverhampton City Council","http://opendatacommunities.org/id/metropolitan-district-council/wolverhampton","Amazon.co.uk 8Z6IN2ZG5",40.81,"Parks/Open Spaces - R & M","5969","Equipment & Purchase","09/01/2020"
"Wolverhampton City Council","http://opendatacommunities.org/id/metropolitan-district-council/wolverhampton","BUXTON'S LIMITED",156,"Northicote Farm","5193","Protective Clothing","09/01/2020"
"Wolverhampton City Council","http://opendatacommunities.org/id/metropolitan-district-council/wolverhampton","BUXTON'S LIMITED",160,"Northicote Farm","5193","Protective Clothing","09/01/2020"
"Wolverhampton City Council","http://opendatacommunities.org/id/metropolitan-district-council/wolverhampton","CARVER/WOLVERHAMPTON/L",90.4,"Cleaning of Buildings - General","5211","Materials","09/01/2020"
"Wolverhampton City Council","http://opendatacommunities.org/id/metropolitan-district-council/wolverhampton","SP   HUDSONS-UK",127.5,"Condition Surveys","5734","Services - Professional Fees","09/01/2020"
"Wolverhampton City Council","http://opendatacommunities.org/id/metropolitan-district-council/wolverhampton","ARGOS LTD",30.37,"Learning Disabilities Management","5310","Services - Consultants","09/01/2020"
"Wolverhampton City Council","http://opendatacommunities.org/id/metropolitan-district-council/wolverhampton","AMZNMktplace",6.5,"Global Budgets","5999","Equipment & Purchase","09/01/2020"
"Wolverhampton City Council","http://opendatacommunities.org/id/metropolitan-district-council/wolverhampton","AMZNMktplace",8.69,"Global Budgets","5999","Books","09/01/2020"
"Wolverhampton City Council","http://opendatacommunities.org/id/metropolitan-district-council/wolverhampton","ARGOS LTD",41.66,"LAC Transitions Team","5310","Client Allowances","09/01/2020"
"Wolverhampton City Council","http://opendatacommunities.org/id/metropolitan-district-council/wolverhampton","UNTOUCHABLES",12.96,"Education Catering - General Overheads","5231","Equipment - R & M","09/01/2020"
"Wolverhampton City Council","http://opendatacommunities.org/id/metropolitan-district-council/wolverhampton","MBL SEMINARS",125,"Central Training","8299","Training Expenses","09/01/2020"
"Wolverhampton City Council","http://opendatacommunities.org/id/metropolitan-district-council/wolverhampton","thetrainline.com",-16.6,"LAC Transitions Team","4112","Public Transport","08/01/2020"
"Wolverhampton City Council","http://opendatacommunities.org/id/metropolitan-district-council/wolverhampton","thetrainline.com",22.54,"LAC Transitions Team","4112","Public Transport","08/01/2020"
"Wolverhampton City Council","http://opendatacommunities.org/id/metropolitan-district-council/wolverhampton","thetrainline.com",17.65,"LAC Transitions Team","4112","Public Transport","08/01/2020"
"Wolverhampton City Council","http://opendatacommunities.org/id/metropolitan-district-council/wolverhampton","MONARCH CLEANERS LTD",30.6,"Towers Outdoor Education Centre","7216","Laundry Expenses","08/01/2020"
"Wolverhampton City Council","http://opendatacommunities.org/id/metropolitan-district-council/wolverhampton","FUEL CARD SERVICES LTD",379.33,"Towers Outdoor Education Centre","7399","Petrol","08/01/2020"
"Wolverhampton City Council","http://opendatacommunities.org/id/metropolitan-district-council/wolverhampton","C L JONES HEAD OFFICE",135.77,"Towers Outdoor Education Centre","5211","Fixtures and Fittings - Purchases","08/01/2020"
"Wolverhampton City Council","http://opendatacommunities.org/id/metropolitan-district-council/wolverhampton","AMZNMKTPLACE AMAZON.CO",10.4,"Communications & Marketing - General","5999","Services - Professional Fees","08/01/2020"
"Wolverhampton City Council","http://opendatacommunities.org/id/metropolitan-district-council/wolverhampton","GOOGLE  ADS9680351324",3757.01,"Communications & Marketing - General","5968","Marketing/Advertising","08/01/2020"
"Wolverhampton City Council","http://opendatacommunities.org/id/metropolitan-district-council/wolverhampton","SAINSBURYS (2340)",185.39,"Bradley Resource Centre","5411","Provisions (Not for resale)","08/01/2020"
"Wolverhampton City Council","http://opendatacommunities.org/id/metropolitan-district-council/wolverhampton","WM MORRISON FOOD.COM",75.19,"Discretionary Fund","5411","Materials","08/01/2020"
"Wolverhampton City Council","http://opendatacommunities.org/id/metropolitan-district-council/wolverhampton","HOME & MOTORSAVE LIMIT",1.66,"LAC Transitions Team","5039","Client Allowances","08/01/2020"
"Wolverhampton City Council","http://opendatacommunities.org/id/metropolitan-district-council/wolverhampton","AMZNMKTPLACE AMAZON.CO",5.82,"Regional Adoption Agency","5999","Provisions (Not for resale)","08/01/2020"
"Wolverhampton City Council","http://opendatacommunities.org/id/metropolitan-district-council/wolverhampton","AMZNMKTPLACE AMAZON.CO",11.62,"Regional Adoption Agency","5999","Stationery","08/01/2020"
"Wolverhampton City Council","http://opendatacommunities.org/id/metropolitan-district-council/wolverhampton","AMZNMKTPLACE AMAZON.CO",96.27,"Regional Adoption Agency","5999","Fixtures and Fittings - Purchases","08/01/2020"
"Wolverhampton City Council","http://opendatacommunities.org/id/metropolitan-district-council/wolverhampton","AMZNMktplace",14.16,"Aldersley Leisure Village","5999","Equipment & Purchase","08/01/2020"
"Wolverhampton City Council","http://opendatacommunities.org/id/metropolitan-district-council/wolverhampton","AMZNMKTPLACE AMAZON.CO",93.1,"Aldersley Leisure Village","5999","Equipment & Purchase","08/01/2020"
"Wolverhampton City Council","http://opendatacommunities.org/id/metropolitan-district-council/wolverhampton","Trainline",222.32,"Fostering Team","4112","Public Transport","08/01/2020"
"Wolverhampton City Council","http://opendatacommunities.org/id/metropolitan-district-council/wolverhampton","WP-CENTRAL TAXIS L",10.75,"Fostering Team & Allowances","4121","Public Transportation","08/01/2020"
"Wolverhampton City Council","http://opendatacommunities.org/id/metropolitan-district-council/wolverhampton","DECATHLON UK",83.3,"Bert Williams Leisure Centre","5941","Equipment & Purchase","08/01/2020"
"Wolverhampton City Council","http://opendatacommunities.org/id/metropolitan-district-council/wolverhampton","WWW.WMCA.ORG.UK",34.5,"Corporate Parenting","4111","Public Transport","08/01/2020"
"Wolverhampton City Council","http://opendatacommunities.org/id/metropolitan-district-council/wolverhampton","Central Taxis Limited",15.2,"Power2 Team","4121","Client Transport","08/01/2020"
"Wolverhampton City Council","http://opendatacommunities.org/id/metropolitan-district-council/wolverhampton","CUMMINGS BROTHERS LOCK",11.8,"Public Conveniences","7399","Materials","08/01/2020"
"Wolverhampton City Council","http://opendatacommunities.org/id/metropolitan-district-council/wolverhampton","ASDA GROCERIES ONLINE",-13.28,"Upper Pendeford Farm Childrens Home","5411","Provisions (Not for resale)","08/01/2020"
"Wolverhampton City Council","http://opendatacommunities.org/id/metropolitan-district-council/wolverhampton","ASDA GROCERIES ONLINE",204.77,"Upper Pendeford Farm Childrens Home","5411","Provisions (Not for resale)","08/01/2020"
"Wolverhampton City Council","http://opendatacommunities.org/id/metropolitan-district-council/wolverhampton","AMZNMktplace",83.84,"Creative Studies Delivery Area","5999","Equipment & Purchase","08/01/2020"
"Wolverhampton City Council","http://opendatacommunities.org/id/metropolitan-district-council/wolverhampton","AMZNMKTPLACE AMAZON.CO",9.56,"Creative Studies Delivery Area","5999","Equipment & Purchase","08/01/2020"
"Wolverhampton City Council","http://opendatacommunities.org/id/metropolitan-district-council/wolverhampton","AMZNMKTPLACE AMAZON.CO",17.42,"Creative Studies Delivery Area","5999","Equipment & Purchase","08/01/2020"
"Wolverhampton City Council","http://opendatacommunities.org/id/metropolitan-district-council/wolverhampton","AMZNMKTPLACE AMAZON.CO",67.43,"Creative Studies Delivery Area","5999","Equipment & Purchase","08/01/2020"
"Wolverhampton City Council","http://opendatacommunities.org/id/metropolitan-district-council/wolverhampton","AMZNMKTPLACE AMAZON.CO",29.43,"Creative Studies Delivery Area","5999","Equipment & Purchase","08/01/2020"
"Wolverhampton City Council","http://opendatacommunities.org/id/metropolitan-district-council/wolverhampton","AMZNMKTPLACE AMAZON.CO",15.82,"Educational Studies Delivery Area","5999","Equipment & Purchase","08/01/2020"
"Wolverhampton City Council","http://opendatacommunities.org/id/metropolitan-district-council/wolverhampton","AMZNMKTPLACE AMAZON.CO",12.91,"Creative Studies Delivery Area","5999","Equipment & Purchase","08/01/2020"
"Wolverhampton City Council","http://opendatacommunities.org/id/metropolitan-district-council/wolverhampton","COUNTY SCALES LTD",184,"Older People Provider Management","5085","Equipment & Purchase","08/01/2020"
"Wolverhampton City Council","http://opendatacommunities.org/id/metropolitan-district-council/wolverhampton","WILKO RETAIL LIMITED",20,"Duke Street Bungalows","5399","Equipment Catering","08/01/2020"
"Wolverhampton City Council","http://opendatacommunities.org/id/metropolitan-district-council/wolverhampton","Amazon.co.uk M38671UR4",7.86,"Global Budgets","5969","Books","08/01/2020"
"Wolverhampton City Council","http://opendatacommunities.org/id/metropolitan-district-council/wolverhampton","thetrainline.com",168.8,"Music Support Team","4112","Public Transport","08/01/2020"
"Wolverhampton City Council","http://opendatacommunities.org/id/metropolitan-district-council/wolverhampton","NAMESCO",34.99,"Communications & Marketing - General","4816","Marketing/Advertising","07/01/2020"
"Wolverhampton City Council","http://opendatacommunities.org/id/metropolitan-district-council/wolverhampton","ASDA GROCERIES ONLINE",-5.01,"Bradley Resource Centre","5411","Provisions (Not for resale)","07/01/2020"
"Wolverhampton City Council","http://opendatacommunities.org/id/metropolitan-district-council/wolverhampton","ASDA GROCERIES ONLINE",107.42,"Bradley Resource Centre","5411","Provisions (Resale)","07/01/2020"
"Wolverhampton City Council","http://opendatacommunities.org/id/metropolitan-district-council/wolverhampton","AURORA GRAPHICS & DISP",100,"Document Centre - General","7311","Materials","07/01/2020"
"Wolverhampton City Council","http://opendatacommunities.org/id/metropolitan-district-council/wolverhampton","Trainline",206.55,"Children & Young People Support Costs","4112","Public Transport","07/01/2020"
"Wolverhampton City Council","http://opendatacommunities.org/id/metropolitan-district-council/wolverhampton","thetrainline.com",414.63,"Children & Young People Support Costs","4112","Public Transport","07/01/2020"
"Wolverhampton City Council","http://opendatacommunities.org/id/metropolitan-district-council/wolverhampton","WWW.WMCA.ORG.UK",216.58,"LAC Transitions Team","4111","Client Allowances","07/01/2020"
"Wolverhampton City Council","http://opendatacommunities.org/id/metropolitan-district-council/wolverhampton","AMZNMktplace",10.41,"Regional Adoption Agency","5999","Stationery","07/01/2020"
"Wolverhampton City Council","http://opendatacommunities.org/id/metropolitan-district-council/wolverhampton","POST OFFICE COUNTER",1.6,"Regional Adoption Agency","9402","Comms - Postage","07/01/2020"
"Wolverhampton City Council","http://opendatacommunities.org/id/metropolitan-district-council/wolverhampton","AMZNMKTPLACE AMAZON.CO",47.37,"Aldersley Leisure Village","5999","Equipment & Purchase","07/01/2020"
"Wolverhampton City Council","http://opendatacommunities.org/id/metropolitan-district-council/wolverhampton","AMZNMktplace",26.64,"Aldersley Leisure Village","5999","Equipment & Purchase","07/01/2020"
"Wolverhampton City Council","http://opendatacommunities.org/id/metropolitan-district-council/wolverhampton","WP-CENTRAL TAXIS L",3.58,"Fostering Team & Allowances","4121","Public Transport","07/01/2020"
"Wolverhampton City Council","http://opendatacommunities.org/id/metropolitan-district-council/wolverhampton","W HAMPTON1109",12.67,"Public Conveniences","5211","Materials","07/01/2020"
"Wolverhampton City Council","http://opendatacommunities.org/id/metropolitan-district-council/wolverhampton","POSTURITE LTD",59.94,"CIN/CP Social Work Unit - Area 3","7399","Equipment & Purchase","07/01/2020"
"Wolverhampton City Council","http://opendatacommunities.org/id/metropolitan-district-council/wolverhampton","ASDA SUPERSTORE",17.89,"EIP Locality 5","5411","Grant Payments","07/01/2020"
"Wolverhampton City Council","http://opendatacommunities.org/id/metropolitan-district-council/wolverhampton","WEST PARK NEWS",40,"EIP Locality 5","5411","Grant Payments","07/01/2020"
"Wolverhampton City Council","http://opendatacommunities.org/id/metropolitan-district-council/wolverhampton","SAINSBURYS (2340)",38.5,"Creative Studies Delivery Area","5411","Provisions (Not for resale)","07/01/2020"
"Wolverhampton City Council","http://opendatacommunities.org/id/metropolitan-district-council/wolverhampton","ROYAL CARPETS",450,"LAC Transitions Accommodation","5713","Client Allowances","07/01/2020"
"Wolverhampton City Council","http://opendatacommunities.org/id/metropolitan-district-council/wolverhampton","W HAMPTON1797",94.97,"Cleaning of Buildings - General","5211","Materials","07/01/2020"
"Wolverhampton City Council","http://opendatacommunities.org/id/metropolitan-district-council/wolverhampton","VIRGIN MEDIA PYMTS",7.5,"Community Enablement","4814","Comms - Telephone Call charges","07/01/2020"
"Wolverhampton City Council","http://opendatacommunities.org/id/metropolitan-district-council/wolverhampton","NATWEST BANK",100,"Duke Street Bungalows","6011","Provisions (Not for resale)","07/01/2020"
"Wolverhampton City Council","http://opendatacommunities.org/id/metropolitan-district-council/wolverhampton","AMZNMktplace",12.48,"SEN Sensory Inclusion","5999","Equipment & Purchase","07/01/2020"
"Wolverhampton City Council","http://opendatacommunities.org/id/metropolitan-district-council/wolverhampton","AMZNMktplace",11.2,"SEN Sensory Inclusion","5999","Equipment & Purchase","07/01/2020"
"Wolverhampton City Council","http://opendatacommunities.org/id/metropolitan-district-council/wolverhampton","AMZNMktplace",8.75,"Global Budgets","5999","Books","07/01/2020"
"Wolverhampton City Council","http://opendatacommunities.org/id/metropolitan-district-council/wolverhampton","Amazon.co.uk KQ8ST8MH5",9.99,"Global Budgets","5969","Books","07/01/2020"
"Wolverhampton City Council","http://opendatacommunities.org/id/metropolitan-district-council/wolverhampton","WICKES WOLVERHAMPTON",7.25,"Specialist Support Service - North","5211","Equipment - R & M","07/01/2020"
"Wolverhampton City Council","http://opendatacommunities.org/id/metropolitan-district-council/wolverhampton","ASDA GROCERIES ONLINE",80.32,"Ernest Bold Court","5411","Provisions (Not for resale)","07/01/2020"
"Wolverhampton City Council","http://opendatacommunities.org/id/metropolitan-district-council/wolverhampton","AMZNMktplace",11.24,"Inclusion Support","5999","Equipment & Purchase","07/01/2020"
"Wolverhampton City Council","http://opendatacommunities.org/id/metropolitan-district-council/wolverhampton","Amazon.co.uk 723319OO5",32.34,"Newly Qualified Social Workers","5969","Computing - Purchase of Hardware","07/01/2020"
"Wolverhampton City Council","http://opendatacommunities.org/id/metropolitan-district-council/wolverhampton","NATWEST BANK",200,"NRPF","6011","No Recourse to Public Funds","07/01/2020"
"Wolverhampton City Council","http://opendatacommunities.org/id/metropolitan-district-council/wolverhampton","NATWEST BANK",200,"NRPF","6011","No Recourse to Public Funds","07/01/2020"
"Wolverhampton City Council","http://opendatacommunities.org/id/metropolitan-district-council/wolverhampton","CUMMINGS BROTHERS LOCK",30,"Community Enablement","7399","Materials","07/01/2020"
"Wolverhampton City Council","http://opendatacommunities.org/id/metropolitan-district-council/wolverhampton","AMZNMktplace",6.66,"Parks - Ranger Service","5999","Equipment & Purchase","07/01/2020"
"Wolverhampton City Council","http://opendatacommunities.org/id/metropolitan-district-council/wolverhampton","PAYPAL  SARL AKACHA EB",16.74,"Contemporary Gallery","5999","Materials","06/01/2020"
"Wolverhampton City Council","http://opendatacommunities.org/id/metropolitan-district-council/wolverhampton","AMZNMktplace",19.97,"Strategic ICTS (ICT Serv Budget)","5999","Computing - Consumables","06/01/2020"
"Wolverhampton City Council","http://opendatacommunities.org/id/metropolitan-district-council/wolverhampton","COMMS EXPRESS LTD",516,"Strategic ICTS (ICT Serv Budget)","5732","Computing - Consumables","06/01/2020"
"Wolverhampton City Council","http://opendatacommunities.org/id/metropolitan-district-council/wolverhampton","BENSOUND MUSIC",149.48,"WV Active Marketing","5735","Marketing/Advertising","06/01/2020"
"Wolverhampton City Council","http://opendatacommunities.org/id/metropolitan-district-council/wolverhampton","MYPROTEIN.COM",118.2,"WV Active Marketing","5399","Marketing/Advertising","06/01/2020"
"Wolverhampton City Council","http://opendatacommunities.org/id/metropolitan-district-council/wolverhampton","ASDA GROCERIES ONLINE",-1.74,"Key to Inspiration","5411","Subsistence","06/01/2020"
"Wolverhampton City Council","http://opendatacommunities.org/id/metropolitan-district-council/wolverhampton","ASDA GROCERIES ONLINE",162.82,"Key to Inspiration","5411","Subsistence","06/01/2020"
"Wolverhampton City Council","http://opendatacommunities.org/id/metropolitan-district-council/wolverhampton","ARGOS WOLVERHAMPTO",30.19,"Key to Inspiration","5310","Fixtures and Fittings - Purchases","06/01/2020"
"Wolverhampton City Council","http://opendatacommunities.org/id/metropolitan-district-council/wolverhampton","SAINSBURYS SACAT (2340",7.27,"Key to Inspiration","5411","Direct Work With Children","06/01/2020"
"Wolverhampton City Council","http://opendatacommunities.org/id/metropolitan-district-council/wolverhampton","ASDA STORE",53.03,"Bradley Resource Centre","5411","Provisions (Not for resale)","06/01/2020"
"Wolverhampton City Council","http://opendatacommunities.org/id/metropolitan-district-council/wolverhampton","SIMPLY CONVENIENCE",15.9,"Bradley Resource Centre","5411","Provisions (Not for resale)","06/01/2020"
"Wolverhampton City Council","http://opendatacommunities.org/id/metropolitan-district-council/wolverhampton","ASDA GROCERIES ONLINE",-13.3,"Bradley Resource Centre","5411","Provisions (Not for resale)","06/01/2020"
"Wolverhampton City Council","http://opendatacommunities.org/id/metropolitan-district-council/wolverhampton","ASDA GROCERIES ONLINE",173.68,"Bradley Resource Centre","5411","Provisions (Not for resale)","06/01/2020"
"Wolverhampton City Council","http://opendatacommunities.org/id/metropolitan-district-council/wolverhampton","STAFFORF TVM",14.2,"Research & Development","4112","Public Transport","06/01/2020"
"Wolverhampton City Council","http://opendatacommunities.org/id/metropolitan-district-council/wolverhampton","BEATSABAR MUSIC PROJEC",158.3,"Youth Offending Team","5733","Equipment - Hire","06/01/2020"
"Wolverhampton City Council","http://opendatacommunities.org/id/metropolitan-district-council/wolverhampton","WWW.ENERG.CO.UK",15,"EIP Locality 3","7399","Grant Payments","06/01/2020"
"Wolverhampton City Council","http://opendatacommunities.org/id/metropolitan-district-council/wolverhampton","DUNELM (SOFT FURNISHIN",0.83,"LAC Transitions Team","5714","Client Allowances","06/01/2020"
"Wolverhampton City Council","http://opendatacommunities.org/id/metropolitan-district-council/wolverhampton","HOME BARGAINS WOLVERHA",43.27,"LAC Transitions Team","5251","Client Allowances","06/01/2020"
"Wolverhampton City Council","http://opendatacommunities.org/id/metropolitan-district-council/wolverhampton","Avanti West Coast",-73.5,"Regional Adoption Agency","4112","Public Transport","06/01/2020"
"Wolverhampton City Council","http://opendatacommunities.org/id/metropolitan-district-council/wolverhampton","Avanti West Coast",-46,"Regional Adoption Agency","4112","Public Transport","06/01/2020"
"Wolverhampton City Council","http://opendatacommunities.org/id/metropolitan-district-council/wolverhampton","Avanti West Coast",-83.5,"Regional Adoption Agency","4112","Public Transport","06/01/2020"
"Wolverhampton City Council","http://opendatacommunities.org/id/metropolitan-district-council/wolverhampton","Avanti West Coast",-118,"Regional Adoption Agency","4112","Public Transport","06/01/2020"
"Wolverhampton City Council","http://opendatacommunities.org/id/metropolitan-district-council/wolverhampton","AMZNMktplace",20.79,"Regional Adoption Agency","5999","Services - Professional Fees","06/01/2020"
"Wolverhampton City Council","http://opendatacommunities.org/id/metropolitan-district-council/wolverhampton","PREMIER INN",344,"Regional Adoption Agency","3811","Accommodation Costs","06/01/2020"
"Wolverhampton City Council","http://opendatacommunities.org/id/metropolitan-district-council/wolverhampton","Avanti West Coast",332,"Regional Adoption Agency","4112","Public Transport","06/01/2020"
"Wolverhampton City Council","http://opendatacommunities.org/id/metropolitan-district-council/wolverhampton","Avanti West Coast",198,"Regional Adoption Agency","4112","Public Transport","06/01/2020"
"Wolverhampton City Council","http://opendatacommunities.org/id/metropolitan-district-council/wolverhampton","Avanti West Coast",6.1,"Regional Adoption Agency","4112","Public Transport","06/01/2020"
"Wolverhampton City Council","http://opendatacommunities.org/id/metropolitan-district-council/wolverhampton","AMZNMKTPLACE AMAZON.CO",8.33,"Regional Adoption Agency","5999","Stationery","06/01/2020"
"Wolverhampton City Council","http://opendatacommunities.org/id/metropolitan-district-council/wolverhampton","AMZNMktplace",118.11,"Aldersley Leisure Village","5999","Equipment & Purchase","06/01/2020"
"Wolverhampton City Council","http://opendatacommunities.org/id/metropolitan-district-council/wolverhampton","Amazon Prime LD6PK9E15",6.66,"Aldersley Leisure Village","5968","Equipment & Purchase","06/01/2020"
"Wolverhampton City Council","http://opendatacommunities.org/id/metropolitan-district-council/wolverhampton","Avanti West Coast",42.75,"Looked After Team 2","4112","Public Transportation","06/01/2020"
"Wolverhampton City Council","http://opendatacommunities.org/id/metropolitan-district-council/wolverhampton","B & Q 1243",19.8,"Public Conveniences","5200","Materials","06/01/2020"
"Wolverhampton City Council","http://opendatacommunities.org/id/metropolitan-district-council/wolverhampton","WWW.WOLVERHAMPTON.GOV.",73.48,"LAC Transitions Accommodation","9399","Client Allowances","06/01/2020"
"Wolverhampton City Council","http://opendatacommunities.org/id/metropolitan-district-council/wolverhampton","Wix.com",46.57,"Technical Support","5817","Subscriptions","06/01/2020"
"Wolverhampton City Council","http://opendatacommunities.org/id/metropolitan-district-council/wolverhampton","CITY OF WOLVERHAMPTON",28,"LAC Team","9399","Financial Assistance In Exceptional Circ","06/01/2020"
"Wolverhampton City Council","http://opendatacommunities.org/id/metropolitan-district-council/wolverhampton","ASDA GROCERIES ONLINE",-1.5,"Duke Street Bungalows","5411","Provisions (Not for resale)","06/01/2020"
"Wolverhampton City Council","http://opendatacommunities.org/id/metropolitan-district-council/wolverhampton","ASDA GROCERIES ONLINE",234.67,"Duke Street Bungalows","5411","Provisions (Not for resale)","06/01/2020"
"Wolverhampton City Council","http://opendatacommunities.org/id/metropolitan-district-council/wolverhampton","AMZNMktplace",13.68,"Parks - Ranger Service","5999","Equipment & Purchase","06/01/2020"
"Wolverhampton City Council","http://opendatacommunities.org/id/metropolitan-district-council/wolverhampton","WWW.LOCAL.GOV.UK",238.8,"Strategic Financial Services","7399","Conference Expenses","06/01/2020"
"Wolverhampton City Council","http://opendatacommunities.org/id/metropolitan-district-council/wolverhampton","Trainline",208.08,"Strategic Financial Services","4112","Public Transport","06/01/2020"
"Wolverhampton City Council","http://opendatacommunities.org/id/metropolitan-district-council/wolverhampton","Trainline",230.46,"Strategic Financial Services","4112","Conference Expenses","06/01/2020"
"Wolverhampton City Council","http://opendatacommunities.org/id/metropolitan-district-council/wolverhampton","Avanti West Coast",42.55,"Mayoral Expenses","4112","Public Transport","06/01/2020"
"Wolverhampton City Council","http://opendatacommunities.org/id/metropolitan-district-council/wolverhampton","Avanti West Coast",138.5,"Members Expenses","4112","Public Transport","06/01/2020"
"Wolverhampton City Council","http://opendatacommunities.org/id/metropolitan-district-council/wolverhampton","HM PASSPORT OFFICE",85,"Lac Transitions","9399","Services - Supplies & Services to users","03/01/2020"
"Wolverhampton City Council","http://opendatacommunities.org/id/metropolitan-district-council/wolverhampton","AMZNMktplace",129.99,"Bert Williams Leisure Centre","5999","Equipment & Purchase","03/01/2020"
"Wolverhampton City Council","http://opendatacommunities.org/id/metropolitan-district-council/wolverhampton","MARKS&SPENCER PLC SACA",2.95,"Mayoral Expenses","5411","Hospitality","03/01/2020"
"Wolverhampton City Council","http://opendatacommunities.org/id/metropolitan-district-council/wolverhampton","ASDA STORE 4753",7.99,"LAC Transitions Team","5411","Financial Assistance In Exceptional Circ","03/01/2020"
"Wolverhampton City Council","http://opendatacommunities.org/id/metropolitan-district-council/wolverhampton","POST OFFICE COUNTER",7.4,"Looked After Team 2","9402","Comms - Postage","03/01/2020"
"Wolverhampton City Council","http://opendatacommunities.org/id/metropolitan-district-council/wolverhampton","POST OFFICE COUNTER",8.7,"Looked After Team 2","9402","Comms - Postage","03/01/2020"
"Wolverhampton City Council","http://opendatacommunities.org/id/metropolitan-district-council/wolverhampton","thetrainline.com",190.78,"Managing Director","4112","Public Transport","03/01/2020"
"Wolverhampton City Council","http://opendatacommunities.org/id/metropolitan-district-council/wolverhampton","Trainline",76.25,"CIN/CP Social Work Unit - Area 2","4112","Public Transport","03/01/2020"
"Wolverhampton City Council","http://opendatacommunities.org/id/metropolitan-district-council/wolverhampton","ASDA GROCERIES ONLINE",90.51,"Ernest Bold Court","5411","Provisions (Not for resale)","03/01/2020"
"Wolverhampton City Council","http://opendatacommunities.org/id/metropolitan-district-council/wolverhampton","SAINSBURYS SACAT 2040",10,"Duke Street Bungalows","5411","Equipment Catering","03/01/2020"
"Wolverhampton City Council","http://opendatacommunities.org/id/metropolitan-district-council/wolverhampton","SAINSBURYS SACAT 2040",18.75,"Duke Street Bungalows","5411","Equipment Catering","03/01/2020"
"Wolverhampton City Council","http://opendatacommunities.org/id/metropolitan-district-council/wolverhampton","ROOKERY Sainsburys Ba",200,"Duke Street Bungalows","6011","Provisions (Not for resale)","03/01/2020"
"Wolverhampton City Council","http://opendatacommunities.org/id/metropolitan-district-council/wolverhampton","WWW.LOCAL.GOV.UK",199,"Member Training","7399","Training Expenses","03/01/2020"
"Wolverhampton City Council","http://opendatacommunities.org/id/metropolitan-district-council/wolverhampton","R.I.C.S. -(DRS)",139.5,"Workforce Development","8699","Training Expenses","03/01/2020"
"Wolverhampton City Council","http://opendatacommunities.org/id/metropolitan-district-council/wolverhampton","FACEBK ZX5L9R2BR2",17.77,"Communications & Marketing - General","7311","Marketing/Advertising","01/01/2020"
"Wolverhampton City Council","http://opendatacommunities.org/id/metropolitan-district-council/wolverhampton","FACEBK LWWL6NAA82",8.35,"WV Active Marketing","7311","Marketing/Advertising","01/01/2020"
"Wolverhampton City Council","http://opendatacommunities.org/id/metropolitan-district-council/wolverhampton","ICELAND",50.58,"Key to Inspiration","5411","-","01/01/2020"
"Wolverhampton City Council","http://opendatacommunities.org/id/metropolitan-district-council/wolverhampton","ASDA SUPERSTORE",18.15,"Key to Inspiration","5411","-","01/01/2020"
"Wolverhampton City Council","http://opendatacommunities.org/id/metropolitan-district-council/wolverhampton","HOME BARGAINS WOLVERHA",7.98,"Key to Inspiration","5251","-","01/01/2020"
"Wolverhampton City Council","http://opendatacommunities.org/id/metropolitan-district-council/wolverhampton","SAINSBURYS SACAT (2340",9.47,"Key to Inspiration","5411","-","01/01/2020"
"Wolverhampton City Council","http://opendatacommunities.org/id/metropolitan-district-council/wolverhampton","SHERE PUNJAB SWEET CEN",4.1,"Key to Inspiration","5812","-","01/01/2020"
"Wolverhampton City Council","http://opendatacommunities.org/id/metropolitan-district-council/wolverhampton","FACEBK NHR2RP2H52",100,"Outdoor Events Admin","7311","-","01/01/2020"
